Workbook

Sheet Additional file 1 Table S1
A1: Table S1 Primers for miRNAs qRT-PCR validation
B2: miRNA Name | C2: Forward Primers | D2: Reverse Primers
B3: egr-miR-71-5p | C3: TGAAAGACGATGGTAGTGAGA | D3: Universal primer
B4: egr-miR-10a-5p | C4: CACCCTGTAGACCCGAGTTTGA | D4: Universal primer
B5: egr-miR-let-7-5p | C5: TGAGGTAGTGTTTCGAATGTCT | D5: Universal primer
B6: egr-miR-745-3p | C6: TGCTGCCTGGTAAGAGCTGTGA | D6: Universal primer
B7: egr-miR-219-5p | C7: TGATTGTCCATTCGCATTTCTTG | D7: Universal primer
B8: egr-miR-124-3p | C8: TAAGGCACGCGGTGAATACC | D8: Universal primer
B9: egr-miR-4989-3p | C9: AAAATGCACCAACTATCTGAGA | D9: Universal primer
B10: novel-mir-3 | C10: TGGCGGTGGTGATGGTGGT | D10: Universal primer
B11: novel-mir-7 | C11: GCGGTGGTGGTGGTGGTGG | D11: Universal primer
B12: novel-mir-8 | C12: TGACTGGCTGGCTGGCTG | D12: Universal primer
B13: novel-mir-11 | C13: TTCGTAGGTTCGAATCCT | D13: Universal primer

Sheet Additional file 1 Table S2
A1: Table S2 Primers for qRT-PCR of Th1/Th2 associated molecules
E2: Gene Symbol | F2: Species | G2: NCBI Accession
E3: IL-4 | F3: Mouse | G3: NM_021283
E4: IL-6 | F4: Mouse | G4: NM_001314054.1
E5: IL-10 | F5: Mouse | G5: NM_010548.2
E6: IL-12 | F6: Mouse | G6: NM_001159424.1
E7: IL-13 | F7: Mouse | G7: NM_008355.3
E8: Arg-1 | F8: Mouse | G8: NM_007482.3
E9: Nos2 (iNOS) | F9: Mouse | G9: NM_010927.3
E10: IFN-γ | F10: Mouse | G10: NM_008337.3

Sheet Additional file 2 Table S3
A1: Table S3 Protein identification of exosome-like vesicles from C. pisiformis
A2: Protein ID | B2: Protein Name | C2: Protein Qscore | D2: Protein FDR | E2: Protein Mass | F2: Peptide Sequences | G2: Unique Peptide | H2: Unique Peptide Number | I2: Unique Spectra Number | J2: Coverage | K2: Peptide Query | L2: Sament | M2: Abundance | N2: iBAQ
A3: EUB57119.1 | B3: Sodium/potassium-transporting ATPase subunit alpha [Echinococcus granulosus] | C3: 73.54369561 | D3: NA | E3: 112040.0789 | F3: AAVPDAVSK;DMTPAQIDEILENHSEIVFAR;ECNGDASESALLK;ESFNNAYLELGGIGER;FVGLMSMIDPPR;GVGIISDGNK;IANLASGLEMGATPIAR;IDAPAEALVVGDIIDVK;IFEADTSDDQSTANYSR;KADIGVAMGITGSDVSK;LGTNPDTGLTSEQAK;MGAIVAVTGDGVNDSPALK;NLEAVETLGSTSTICSDK;QAADMILLDDNFASIVTGVEEGR;QELAMDEHQISLDELYAR;TVEDIAAER;VAEIPFNSTNK;VDNSALTGESEPQTR;VLGFCDLR;VVMVTGDHPITAK | G3: 1;1;1;1;1;1;1;1;1;1;1;1;1;1;1;1;1;1;1;1 | H3: 20 | I3: 20 | J3: 0.2939 | K3: 1318;15866;7382;11593;7014;2195;10896;11281;12876;10348;9122;12093;12916;16026;14589;2681;5281;9853;2407;7088 | L3: - | M3: 4208119.532 | N3: 85879.99045
A4: EUB54981.1 | B4: putative phospholipid-transporting ATPase IIB [Echinococcus granulosus] | C4: 48.90044384 | D4: NA | E4: 136062.2138 | F4: AHTNAVVAAIGDGGNDVSMIQAAHVGIGIVGK;IHSFEGTFAR;IQVGDIILLHK;KLHLGSVAFAPDSMDDLTETLR;LHLGSVAFAPDSMDDLTETLR;LQEGVRPTLETLR;NTASLSQFIIHR;SEAHLELNAFR;TDQLDGETDWK;TGTLTQNEMVFK;TLVVAHR;VQAAVATLECDLQLLCLTGVEDK;VWMLTGDKLETAECIAK | G4: 1;1;1;1;1;1;1;1;1;1;1;1;1 | H4: 13 | I4: 14 | J4: 0.1488 | K4: 17905;4561;5619;15798;15236;8907;7292;6041;6040;6337;7096;723;16357;13291 | L4: - | M4: 5093771.919 | N4: 89364.41963
A5: EUB64462.1 | B5: Calpain-A [Echinococcus granulosus] | C5: 34.71247783 | D5: NA | E5: 92021.571 | F5: APAPAPVPVTVR;DEFWSALLEK;FDADNSGTMSTFELR;FGEWVEVVVDDR;GGSTIEALEDFTGGLAEYYDLR;LFGSYESLR;LPPGTYVIVPSTFAK;NPWGNEAEWK;SGSLDFEEFK;SLISMLDVDR | G5: 1;1;1;1;1;1;1;1;1;1 | H5: 10 | I5: 10 | J5: 0.1521 | K5: 4699;5482;10785;8117;15627;3347;9722;5392;4461;4319 | L5: - | M5: 3563069.096 | N5: 74230.60617
A6: CDS23982.1 | B6: major vault protein [Echinococcus multilocularis] | C6: 30.36831617 | D6: NA | E6: 96871.04399 | F6: AIPLGDNEGIYVR;ELELEFVQK;FAQPPFPLYPGEK;GSVASVNFDVFHK;ILPPNEALLLR;LVTGPLTFIR;QKIEDEASAEEAR;VPHNAVAQIYDYK;VQAIGSENLR | G6: 1;1;1;1;1;1;1;1;1 | H6: 9 | I6: 9 | J6: 0.1208 | K6: 7638;4158;8631;7517;5620;3909;8454;8958;3514 | L6: - | M6: 6179388.349 | N6: 112352.5154
A7: EUB56079.1 | B7: Actin-1 [Echinococcus granulosus] | C7: 33.53372491 | D7: NA | E7: 41788.88 | F7: AGFAGDDSPR;DLTALAPTTMK;DLYSNVVLSGGSTMYPGIADR;GYAFTTTAER;IWHHTFYNELR;KDLYSNVVLSGGSTMYPGIADR;LCYVALDFENEMATAATSSSLEK;QEYDESGPSIVHR;QQSIMVGMGNK;TTGIVLDSGDGVSHTVPIYEGYALPHAILR;TYELPDGQVITVGNER;VAPEEHPVLLTEAPLNPK | G7: 1;1;1;1;0;1;1;0;1;1;1;0 | H7: 9 | I7: 10 | J7: 0.4667 | K7: 2556;4529;14875;14949;3896;8942;15475;16372;8951;8739;4895;18089;11775;13187;13188 | L7: - | M7: 5259759.992 | N7: 228685.217
A8: CDS19796.1 | B8: enolase [Echinococcus multilocularis] | C8: 33.03124298 | D8: NA | E8: 46530.89903 | F8: AAGWGVMVSHR;AGIQIVGDDLTVTNPER;AVYAGEHFR;GNPTVEVDLTTSK;IGMDVAASEFYQDGK;LAMQEFMILPTGAK;MGTEVYHHLK;NVNEIIAPALIK;SGETEDSTIADIVVGLR | G8: 1;1;1;1;1;1;1;1;1 | H8: 9 | I8: 9 | J8: 0.2725 | K8: 4644;11839;3098;6982;10127;9309;5199;6158;11524 | L8: - | M8: 2007032.824 | N8: 57343.79496
A9: CDS21212.1 | B9: cGMP dependent protein kinase [Echinococcus multilocularis] | C9: 30.75222747 | D9: NA | E9: 112723.9578 | F9: EYVDLEHLQSQGGQLK;FLSSVPLLK;GIEAYDLSHHK;IADVLEAQFHPDGECIIR;KDFLELMGNIADLEHK;LDELHSEVDK;VHIVETK;VTAELMHLR;YFQGFDWDGVR | G9: 1;1;1;1;1;1;1;1;1 | H9: 9 | I9: 10 | J9: 0.1059 | K9: 12199;2697;5845;14114;12440;4791;4792;988;3339;7319 | L9: - | M9: 972601.2166 | N9: 17063.17924
A10: EUB64035.1 | B10: Moesin/ezrin/radixin [Echinococcus granulosus] | C10: 23.60185908 | D10: NA | E10: 68290.51579 | F10: EVWYFGIQYIDKDGNPTFLR;IGFPWSEIR;ILALCTGNHELYMR;IYCPTDTAVLLASYACVAK;NLSFHDK;SDSIEVQQMK;VTTAESQLEFEMQK | G10: 1;1;1;1;1;1;1 | H10: 7 | I10: 10 | J10: 0.1587 | K10: 16010;16009;3754;10787;10788;14314;1349;4560;10267;10431 | L10: CDS37598.1 | M10: 14088354.93 | N10: 361239.8701
A11: sp|F1C7I4|MDHC_TAESO | B11: Malate dehydrogenase, cytoplasmic OS=Taenia solium OX=6204 GN=MDH PE=1 SV=1 | C11: 23.8384322 | D11: NA | E11: 36493.82327 | F11: AIVDQMHDWWFGTK;AIYQVAAK;DIYFSFPVTIK;EGEWVSMSVYSTGEHYGAPK;IILHLLDIPEAK;ITADELVDER;QFPDLAHAVVTK | G11: 1;1;1;1;1;1;1 | H11: 7 | I11: 10 | J11: 0.262 | K11: 11230;11231;1387;6641;14862;7179;7180;4501;6593;6368 | L11: - | M11: 9534476.907 | N11: 397269.8711
A12: EUB62510.1 | B12: Elongation factor 1-alpha [Echinococcus granulosus] | C12: 25.85036545 | D12: NA | E12: 48825.71101 | F12: EHALLAFTLGVK;GITIDIALWK;GPTLLASIDLVEPPTRPVDKPLR;LPLQDVFK;MDAVDYSEK;STSTGHLIYK;YLVTIIDAPGHR | G12: 1;1;1;1;1;1;1 | H12: 7 | I12: 8 | J12: 0.1875 | K12: 6214;4096;16116;2200;3192;3779;6920;6919 | M12: 1785118.461 | N12: 81141.74824
A13: EUB53928.1 | B13: ubiquitin ribosomal protein L40 [Echinococcus multilocularis] | C13: 20.1944127 | D13: NA | E13: 25600.78161 | F13: EGIPPDQQR;ESTLHLVLR;IQDKEGIPPDQQR;MQIFVK;TITLEVEPSDSIENVK;TLSDYNIQK | G13: 1;1;1;1;1;1 | H13: 6 | I13: 13 | J13: 0.2325 | K13: 3011;3008;3010;3006;3009;3327;9023;9036;494;11638;11639;11637;3447 | L13: EUB58991.1 | M13: 52539502.57 | N13: 2501881.075
A14: EUB64724.1 | B14: annexin [Echinococcus granulosus] | C14: 18.12581384 | D14: NA | E14: 38712.62748 | F14: AMDGMGTDEAMIIEILGTR;HEPTEQQLK;ILVALLAAQR;LGTDEETFITILCTR;LVEAIASETK;VEIAEAYK | G14: 1;1;1;1;1;1 | H14: 6 | I14: 6 | J14: 0.204 | K14: 13720;3812;3331;11595;3253;1868 | L14: tr|Q9XZL9|Q9XZL9_TAESO;EUB58966.1;CDS19406.1 | M14: 11516168.21 | N14: 606114.1162
A15: EUB62111.1 | B15: Tetracycline resistance leader peptide TetL [Echinococcus multilocularis] | C15: 18.26313553 | D15: NA | E15: 130257.655 | F15: EASDIILTDDNFTSIVK;MMDDNNLVR;QSIPINSGYTSK;QVVAVTGDGTNDAPALK;SLTAIAFR;YGDLLPADGVLIQCNDLK | G15: 1;1;1;1;1;1 | H15: 6 | I15: 6 | J15: 0.0684 | K15: 12512;3785;6154;10423;1525;13583 | L15: - | M15: 84634.54597 | N15: 1410.575766
A16: tr|V5T6E6|V5T6E6_TAESO | B16: Putative growth regulator 14-3-3 OS=Taenia solium OX=6204 PE=2 SV=1 | C16: 21.61456486 | D16: NA | E16: 27729.82736 | F16: ATSLAEAELSVTHPIR;DHASLVSIAK;ICNDVLALLSK;STEAAEEAYQK;TIAEMGNELNNEER;YLAEVQEGEQNDK | G16: 1;1;1;1;1;1 | H16: 6 | I16: 6 | J16: 0.3024 | K16: 10841;3014;5580;5355;9997;9004 | L16: EUB54777.1;CDS36536.1 | M16: 1204135.852 | N16: 54733.4478
A17: EUB64561.1 | B17: Multidrug resistance protein [Echinococcus granulosus] | C17: 21.42854427 | D17: NA | E17: 138484.3859 | F17: DGIILEQGTHEQLR;ILLLDEATSALDTR;MPEGFNTWLNEGGAK;NFNLTIEPGKK;NVNFSYPSRPNVPILK;TMLGIAGER;VAIVGFSGSGK | G17: 1;0;1;1;1;1;1 | H17: 6 | I17: 6 | J17: 0.0719 | K17: 9903;9119;9118;10373;5757;12221;2076;2866 | L17: EUB64562.1;CDI97827.1 | M17: 685798.5626 | N17: 9524.980037
A18: EUB64038.1 | B18: Vacuolar protein sorting-associated protein 4A [Echinococcus granulosus] | C18: 20.96729303 | D18: NA | E18: 108478.2958 | F18: IYIPLPEAPAR;SKPTVNEADLQK;STFFSISSSDLVSK;TEFLVQMQGVGTNNK;TPWQGILLYGPPGTGK;VQTATHFK | G18: 1;1;1;1;1;1 | H18: 6 | I18: 6 | J18: 0.0795 | K18: 5516;6639;8818;10528;10719;1931 | L18: CDS37602.1 | M18: 3985748.058 | N18: 62277.3134
A19: EUB54636.1 | B19: rab [Echinococcus multilocularis] | C19: 21.50620378 | D19: NA | E19: 23634.09669 | F19: AQIWDTAGQER;GAVGALLVYDIAK;NEFNLESK;NIVTMLVGNK;TTIGVEFATR;YSTYEHVHVWLK | G19: 1;1;1;1;1;1 | H19: 6 | I19: 9 | J19: 0.3019 | K19: 5900;6082;2418;3756;3552;3755;3622;9412;9409 | M19: 6452686.443 | N19: 496360.4956
A20: EUB54777.1 | B20: hypothetical protein EGR_10354 [Echinococcus granulosus] | C20: 21.42854427 | D20: NA | E20: 27759.83793 | F20: ATSLAEAELSVTHPIR;ICNDVLALLSK;IMSSIAK;STEAAEEAYQK;TIAEMGNELNNEER;YLAEVQEGEQNDK | G20: 1;1;1;1;1;1 | H20: 6 | I20: 6 | J20: 0.2903 | K20: 10841;5580;346;5355;9997;9004 | L20: - | M20: 1380918.622 | N20: 62769.02826
A21: EUB61143.1 | B21: Tubulin beta-3 chain [Echinococcus granulosus] | C21: 22.00868571 | D21: NA | E21: 120590.9358 | F21: ALLIDLEPGTMDSVR;GHYTEGAELIEEVLDVVR;IMTSFSVVPSPK;INVYYNEGQGGK;LAVNMVPFPR;TSQSYQSCTILELTR;VAGTFIGNTTAIQELFTR | G21: 1;1;1;1;1;1 | H21: 6 | I21: 6 | J21: 0.09 | K21: 10120;13740;6121;6765;4279;11746;13066 | L21: - | M21: 509025.7204 | N21: 11065.77653
A22: EUB56318.1 | B22: Heat shock cognate protein [Echinococcus granulosus] | C22: 23.0500784 | D22: NA | E22: 71039.27447 | F22: ELESVCNPIITK;FEELCSDLFR;FELSGIPPAPR;GAVHDIVLVGGSTR;IINEPTAAAIAYGLDKK;LLQDFFNGR;LSKEEIER;LVSHFVEEFK;MKETAEAYLGK;NGLESYAFTMK;NQVAMNPSNTVFDAK;QTQTFTTYSDNQPGVLIQVYEGER;STAGDTHLGGEDFDSR;TTPSYVAFTDTER | G22: 1;0;0;1;0;0;0;1;0;1;1;0;0;1 | H22: 6 | I22: 9 | J22: 0.278 | K22: 7484;6439;4781;7232;7233;11757;3827;2686;5437;5436;5530;5754;5764;10194;17233;17234;10506;10507;8611 | L22: EUB54575.1;CDS25073.1 | M22: 2973476.673 | N22: 78249.38613
A23: EUB61528.1 | B23: Basement membrane-specific heparan sulfate proteoglycan core protein [Echinococcus granulosus] | C23: 17.89660758 | D23: NA | E23: 95507.3897 | F23: ATIQVEDVCPPGYR;GQTGFSSLQIR;LDDGEIFEK;NFAENCGTPNEK;YHVTALDEGEYVCR | G23: 1;1;1;1;1 | H23: 5 | I23: 5 | J23: 0.0709 | K23: 9859;4912;3299;7227;11010 | L23: EUB60169.1 | M23: 1089342.945 | N23: 23681.36837
A24: EUB60605.1 | B24: solute carrier family 5 [Echinococcus multilocularis] | C24: 17.66452405 | D24: NA | E24: 75452.40943 | F24: ETSIEEDPK;ETSIEEDPKQR;ILFADTVACGDANLCQK;VAGCTDIAYPSLVLNLLPSGAR;VTIVSEEEK | G24: 1;1;1;1;1 | H24: 5 | I24: 6 | J24: 0.0856 | K24: 3074;6653;12665;15227;15240;2988 | L24: - | M24: 8739484.933 | N24: 397249.3151
A25: CDS18138.1 | B25: V type proton ATPase 116 kDa subunit a [Echinococcus multilocularis] | C25: 16.62313136 | D25: NA | E25: 101212.2237 | F25: EDLQVVLNR;EMLDLESNLDK;GMELSNSSLQPILNR;REDLQVVLNR;SVYHALNLFNLDVTTK | G25: 1;1;1;1;1 | H25: 5 | I25: 6 | J25: 0.0586 | K25: 3502;6327;10456;10636;5541;12130 | L25: - | M25: 282247.7505 | N25: 7237.121809
A26: EUB63467.1 | B26: Receptor Mediated Endocytosis family member [Echinococcus multilocularis] | C26: 17.66452405 | D26: NA | E26: 63483.88653 | F26: ELIANLPAIYENLSR;FIAIMHGEQSSIIPGNALVVDPK;VLEGISLVDTPGILSGEK;VYGALMWNLGK;YLIGEDFPGMR | G26: 1;1;1;1;1 | H26: 5 | I26: 5 | J26: 0.1385 | K26: 11049;15898;12071;5662;6190 | L26: - | M26: 277088.205 | N26: 7291.794869
A27: EUB63692.1 | B27: myoferlin [Echinococcus multilocularis] | C27: 14.65094307 | D27: NA | E27: 230985.4763 | F27: AIDLQPSDPSGLADPYVEIR;ASGFWPFADQPGPDGQLTGK;DDVIGETVIDLENR;DNQLPSEILATFCK;ECTLDIMNTSSPK;EDDGLLTVVAETYENEAQIVGK;EEALERPAGK;EGTDHPEWYEELK;ETLYMPPINIGVR;FLLYTGEDYPR;GEALTPNDTLEVK;GMIPSPHWGPPK;HDDLEQLK;HINDNLNPEWNENIEFDLK;IADNLEYGLENIEVSMK;IVDYDLMTR;IYCLPEDPNAAMPLK;KPLVGTHVISDISGFK;LAITVYDWDR;LALHILNALPLVK;LGVQFPSMCDK;LKECTLDIMNTSSPK;LREEATSAEDVVK;MDSNAFSGVK;NDAIATAFIK;NVELIGK;QLPGGNISPLCK;QTNMTSPR;QTWQLNAYIFQAR;SLDGEGNFNWR;TKHINDNLNPEWNENIEFDLK;TPISGWEK;VCFINQSQK;VIVWNTYDVK;VLQNPIQPGMDQGK;VMLQWYPIK;WEGDWYISPEFSLMFK;WLLLGEPEDPQAGSK;YLENEVPDSAPVECIVR | G27: 0;0;0;0;0;0;0;0;0;0;1;0;0;1;0;0;0;0;0;0;0;0;0;0;0;1;0;1;0;0;1;0;0;0;0;0;0;0;0 | H27: 5 | I27: 6 | J27: 0.235 | K27: 14556;14058;14059;9701;9700;10197;8691;15700;3684;3685;10151;10152;8782;8781;7157;7288;6270;2612;15522;15527;13180;13036;4033;11219;10867;10868;5660;7620;7619;6189;11263;11264;8085;3168;3282;549;6007;1957;10239;6147;6148;16494;1838;3999;5470;9040;9227;4724;4913;13780;10249;13475 | L27: EUB63692.1 | M27: 2104461.139 | N27: 19667.86112
A28: CDS22870.1 | B28: Lipid transport protein N terminal [Echinococcus multilocularis] | C28: 16.69729962 | D28: NA | E28: 345409.5605 | F28: ATPPGMPFR;ELTGFEVGLFGVDSK;LPSESVEEDISGR;SWLFLDTAGK;VEQQGEWNGNR | G28: 1;1;1;1;1 | H28: 5 | I28: 6 | J28: 0.0188 | K28: 2337;9814;7645;7646;4202;6450 | L28: - | M28: 1040691.629 | N28: 5565.195878
A29: EUB57979.1 | B29: Exocyst complex component 3 [Echinococcus granulosus] | C29: 14.92393773 | D29: NA | E29: 88549.04071 | F29: EVENDAHLK;LQQSFPDVR;QLVAAIENMSYLVK;QNSSADLDTLR;SLAIDVEDWK | G29: 1;1;1;1;1 | H29: 5 | I29: 5 | J29: 0.0682 | K29: 3160;3559;9606;5265;4704 | L29: - | M29: 818715.0743 | N29: 16374.30149
A30: EUB62107.1 | B30: 14-3-3 protein zeta [Echinococcus granulosus] | C30: 17.12561329 | D30: NA | E30: 27927.78765 | F30: AFDDAVAELDTLPEESYK;EILDLLDK;KAFDDAVAELDTLPEESYK;VISSIEQK;YVAEFCTGDER | G30: 1;1;1;1;1 | H30: 5 | I30: 5 | J30: 0.1862 | K30: 13632;2186;14465;1714;6809 | L30: - | M30: 1462897.976 | N30: 73144.89879
A31: EUB57999.1 | B31: Ras-related C3 botulinum toxin substrate 2 [Echinococcus granulosus] | C31: 11.87467008 | D31: NA | E31: 21205.14098 | F31: AVFDEAIR;AVLIPHTK;KPINLALWDTAGQEDYDR;YLECSALTQTGLK | G31: 1;1;1;1 | H31: 4 | I31: 5 | J31: 0.2461 | K31: 1861;1526;14236;14237;8559 | L31: - | M31: 446898.9695 | N31: 44689.89695
A32: EUB64797.1 | B32: Ras-related protein O-RAL [Echinococcus granulosus] | C32: 13.82284431 | D32: NA | E32: 34589.96537 | F32: CHVPYLETSAK;ISFGSEDVQLHILDTAGQEDYAGIR;NSEGFLLVFDLTDR;SALTLYFMYDEFVK | G32: 1;1;1;1 | H32: 4 | I32: 5 | J32: 0.2133 | K32: 6290;17073;17072;10072;11158 | L32: - | M32: 968348.0351 | N32: 53797.11306
A33: EUB63534.1 | B33: Ras-related protein Rap-1b [Echinococcus granulosus] | C33: 15.36671893 | D33: NA | E33: 25420.92976 | F33: INVNEVFFDLVR;LVVLGSGGVGK;VKDTHEVPLVLVGNK;YDPTIEDSYR | G33: 1;1;1;1 | H33: 4 | I33: 4 | J33: 0.2133 | K33: 8320;2484;10344;5732 | L33: - | M33: 394933.1881 | N33: 30379.47601
A34: EUB59848.1 | B34: ADP-ribosylation factor [Echinococcus granulosus] | C34: 15.36671893 | D34: NA | E34: 20724.75955 | F34: DAVLLVFANK;HYFQNTQGLIFVVDSNDR;ILMVGLDAAGK;NVNFTVWDVGGQDK | G34: 1;1;1;1 | H34: 4 | I34: 4 | J34: 0.2912 | K34: 3560;14536;3533;9599 | L34: - | M34: 730586.8135 | N34: 60882.23445
A35: EUB59451.1 | B35: NEDD4 E3 ubiquitin protein ligase WWP1 [Echinococcus multilocularis] | C35: 14.32532625 | D35: NA | E35: 94672.31574 | F35: FIALALFHGK;FIDNGFTLPFYK;VTDANKEEYLSLMVNWR;YTPEGFVFYVDHNTR | G35: 1;1;1;1 | H35: 4 | I35: 6 | J35: 0.0649 | K35: 3908;8276;8286;14021;12208;12207 | L35: - | M35: 174866.5408 | N35: 3974.239565
A36: EUB62794.1 | B36: Otoferlin [Echinococcus granulosus] | C36: 15.36671893 | D36: NA | E36: 244569.6946 | F36: AEGLPPMNTDIITSIK;DETIATHLIDLK;EVQDDLIITSAGIDTSLIER;FYTNNPYYNK;GWMLGVGEDDQK;IYSSELEEVPDFQGFCSPIR;KLTGANLYEAIR;LASQVTTHFVR;MPCDLTLQVWDNELVR;SGLPPPVYTQIDNTVK;SLGEGVAYR;TGFSDPMAR;VEVELHLVSGQDAEASPVGK;YVDLYLPLDEK | G36: 0;0;1;0;0;1;1;0;1;0;0;0;0;0 | H36: 4 | I36: 4 | J36: 0.0897 | K36: 10890;7097;14733;6560;6682;15622;6842;5741;5740;13466;11186;2110;2432;13994;7085 | L36: CUT98649.1 | M36: 0 | N36: 0
A37: EUB61207.1 | B37: BRO1 domain containing protein BROX [Echinococcus multilocularis] | C37: 14.32532625 | D37: NA | E37: 51001.5289 | F37: AQTENAMIYHQK;CSMAIASAQEALK;NAAGLFEHIK;SGSGAEFCFIR | G37: 1;1;1;1 | H37: 4 | I37: 5 | J37: 0.1013 | K37: 7847;8114;7222;3689;5393 | L37: - | M37: 711451.7394 | N37: 32338.71543
A38: EUB64499.1 | B38: Beta-soluble NSF attachment protein [Echinococcus granulosus] | C38: 13.82284431 | D38: NA | E38: 33831.43069 | F38: EYIASAAK;IFEEAGVSSMDNK;VAHYYATSGQFEK;VDEALSSENLETYTAAVK | G38: 1;1;1;1 | H38: 4 | I38: 4 | J38: 0.1739 | K38: 1270;7780;8752;13061 | L38: - | M38: 163971.2301 | N38: 6558.849203
A39: tr|D2U5C3|D2U5C3_TAESO | B39: Phosphoenolpyruvate carboxykinase (Fragment) OS=Taenia solium OX=6204 GN=pepck PE=3 SV=1 | C39: 14.11095099 | D39: NA | E39: 54069.78304 | F39: AINPEAGFFGVAPGTNHK;FFWEGLESEYKPETK;GILGQWISPK;HGVMIGAQVK;IAYDEGWMAEHMLIMSVTNPK;IFHVNWFR;LIMSFGSGYGGNSLLGK;NSVLTNVAETEDGR;RPEGIPLVYEAR;SEATAAAEFK;VMCVGDDIAWMR;YGTVPHVAEGVK;YLEHWLAMEKPGR | G39: 0;1;0;0;0;0;0;1;0;0;0;1;1 | H39: 4 | I39: 6 | J39: 0.3554 | K39: 12068;12597;12598;3674;3013;3176;15902;3930;3931;10895;8813;8812;7453;2898;8165;5710;10117 | L39: EUB57677;EUB57677.1 | M39: 1641012.24 | N39: 45583.67332
A40: tr|W8P1J2|W8P1J2_TAESO | B40: Peptidyl-prolyl cis-trans isomerase OS=Taenia solium OX=6204 PE=2 SV=1 | C40: 12.89656381 | D40: NA | E40: 17414.43401 | F40: FEDENFNHK;HVVFGEVESGEDVVK;IIPGFMCQGGDFTAGNGTGGK;IVFTLFDDVPK | G40: 1;1;1;1 | H40: 4 | I40: 5 | J40: 0.3457 | K40: 4736;10115;10113;14130;6140 | L40: - | M40: 1411212.782 | N40: 117601.0652
A41: CDS21096.1 | B41: endophilin B1 [Echinococcus multilocularis] | C41: 14.05492785 | D41: NA | E41: 28779.61177 | F41: EFDGLSVQLLDLIR;IITATEEFVDINIASK;TSDLIHEIDQMK;VHQESLTVFEK | G41: 1;1;1;1 | H41: 4 | I41: 5 | J41: 0.2103 | K41: 9982;11537;7807;7808;6457 | L41: EUB60229.1 | M41: 597379.3303 | N41: 29868.96652
A42: EUB57627.1 | B42: Rab GDP dissociation inhibitor alpha [Echinococcus granulosus] | C42: 12.35313795 | D42: NA | E42: 50178.07471 | F42: DWNVDLIPK;ECILSGLMSVAGK;FGVDNNTQDFVGHAICLYR;VLHMDR | G42: 1;1;1;1 | H42: 4 | I42: 4 | J42: 0.1051 | K42: 3687;7038;14921;524 | L42: - | M42: 117808.7367 | N42: 4531.105259
A43: EUB62853.1 | B43: Ras-related protein Rab-2A [Echinococcus granulosus] | C43: 14.32532625 | D43: NA | E43: 23420.81891 | F43: GAAGALLVYDITR;LQIWDTAGQETFR;TAANVEEAFIETAK;YIIIGDTGVGK | G43: 1;1;1;1 | H43: 4 | I43: 4 | J43: 0.2406 | K43: 6503;9437;8682;4176 | L43: - | M43: 5700567.476 | N43: 356285.4672
A44: CDS24569.1 | B44: intestinal type alkaline phosphatase 1 [Echinococcus multilocularis] | C44: 15.36671893 | D44: NA | E44: 59641.739 | F44: GMLPIGYMTGPGAK;SPNGFFLFVEGAR;TYDLETMVTDSASSATAYLTGTK;VPLPYPPFTIK | G44: 1;1;1;1 | H44: 4 | I44: 4 | J44: 0.1144 | K44: 7360;7986;15858;5872 | L44: - | M44: 926742.2888 | N44: 30891.40963
A45: EUB59108.1 | B45: Transforming protein RhoA [Echinococcus granulosus] | C45: 13.82284431 | D45: NA | E45: 21935.19113 | F45: EVFEMATR;LVIVGDGACGK;QSPVTTEQGK;VELALWDTAGQEDYDR | G45: 1;1;1;1 | H45: 4 | I45: 6 | J45: 0.2308 | K45: 2446;2621;3547;3363;12519;12507 | L45: - | M45: 2052355.701 | N45: 157873.5155
A46: EUB64384.1 | B46: programmed cell death 6 interacting protein [Echinococcus multilocularis] | C46: 12.07681989 | D46: NA | E46: 89969.2676 | F46: AEHDDMKPTVVSK;DNDLIYHEIIPDPK;GGTIDAQSLATEHVNK;VNDYVFAR | G46: 1;1;1;1 | H46: 4 | I46: 4 | J46: 0.0627 | K46: 8209;10683;10269;2455 | L46: - | M46: 632177.0722 | N46: 14367.66073
A47: CDS15195.1;CDS24577.1 | B47: tryptophanyl tRNA synthetase [Echinococcus multilocularis] | C47: 13.82284431 | D47: NA | E47: 46374.80432 | F47: DIIAVGFDPK;GGNCDVDVSFQYLR;MSASDPNSAIFLTDTPK;PSEGDDIVTPWDVK | G47: 1;1;1;1 | H47: 4 | I47: 5 | J47: 0.1335 | K47: 3365;10109;11945;11812;9374 | L47: - | M47: 3461789.05 | N47: 133145.7327
A48: EUB60416.1 | B48: Long-chain-fatty-acid--CoA ligase [Echinococcus granulosus] | C48: 11.5250392 | D48: NA | E48: 75648.62165 | F48: KIVMADLK;LAQGEYIAPEK;SLSEAANFMGFEK | G48: 1;1;1 | H48: 3 | I48: 4 | J48: 0.0471 | K48: 1846;5254;8079;7816 | L48: - | M48: 9083801.953 | N48: 275266.7259
A49: EUB59351.1 | B49: tegumental protein [Echinococcus granulosus] | C49: 7.683359466 | D49: NA | E49: 20862.41948 | F49: TGSFTYEHFCEVIGLNK;VEDPSGSMQQMLLYLDK | G49: 1;1;1 | H49: 3 | I49: 3 | J49: 0.1889 | K49: 13576;13177 | L49: - | M49: 840174.1479 | N49: 70014.51233
A50: CDS22870.1 | B50: basement membrane specific heparan sulfate [Echinococcus multilocularis] | C50: 8.253509908 | D50: NA | E50: 859474.4438 | F50: AELIDEFTNEK;ELFTSVPYR;FVINYPLASGK;GFAVNVHR;HAQLISPSVLAK;ILIQEVCGPGER;ISVNPEVVTTRPGSTVR;ITQANGAPVK;LELQGLPR;LFFVADSTEYQDEGQYR;TIVEVLPGETPNQLK;TNEHGQATTAIR;TVALESGK;VDVQDVPR;VVVAEPGSR | G50: 0;0;1;0;0;0;0;0;0;0;1;0;1;0;0 | H50: 3 | I50: 3 | J50: 0.0214 | K50: 6357;3842;5128;1665;5788;7124;11958;2640;1873;14008;10229;6210;789;1880;1799 | L50: - | M50: 3565667.279 | N50: 7651.646522
A51: EUB58966.1 | B51: ras gtpase [Echinococcus multilocularis] | C51: 11.5250392 | D51: NA | E51: 35719.21167 | F51: QGVEDAFFTLVR;SALTIQLIQNHFVDEYDPTIEDSYR;TGEGFLCVFAVNNAK | G51: 1;1;1 | H51: 3 | I51: 4 | J51: 0.1635 | K51: 7244;17761;10080;10079 | L51: - | M51: 136598.9432 | N51: 8537.43395
A52: EUB60984.1 | B52: Annexin A6 [Echinococcus granulosus] | C52: 10.48364651 | D52: NA | E52: 87625.95958 | F52: CWGTDEETIIK;GVGTNENTIIEIIVGCTNEEINK;SETTGYFCK | G52: 1;1;1 | H52: 3 | I52: 4 | J52: 0.0543 | K52: 6879;16239;16244;3591 | L52: - | M52: 437401.3513 | N52: 9306.41173
A53: EUB58526.1 | B53: Ras-related protein Rab-27A [Echinococcus granulosus] | C53: 9.981164581 | D53: NA | E53: 36866.69655 | F53: GRDEEDYDYLIK;LAQELQVPYIETSALSGK;LYLQLWDTAGQER | G53: 1;1;1 | H53: 3 | I53: 3 | J53: 0.1303 | K53: 8941;13118;9752 | L53: - | M53: 133197.2828 | N53: 6342.727752
A54: tr|Q70HP8|Q70HP8_TAESO | B54: H17g protein, tegumental antigen (Fragment) OS=Taenia solium OX=6204 GN=h17g PE=2 SV=1 | C54: 11.84867512 | D54: NA | E54: 64296.73231 | F54: ESDLADMK;GTSLVLGVDALGLSIYEPDNLLDPK;IAELESLLNQER;IGFPWSEIR;ILALCTGNHELYMR;IYCPTDTAVLLASYACVAK;NALGQDLFDQVVR;SDSIEVQQMK;VTTAESQLEFEMQK | G54: 0;1;1;0;0;0;1;0;0 | H54: 3 | I54: 3 | J54: 0.2246 | K54: 1750;16560;7617;3754;10787;10788;14314;14313;8446;4560;10267;10431 | M54: 2595891.64 | N54: 66561.3241
A55: EUB56651.1 | B55: Collagen alpha-1(IV) chain [Echinococcus granulosus] | C55: 11.5250392 | D55: NA | E55: 173745.3684 | F55: GETGLPGPDGGSEPGLR;GPPGVPGTQGPAGER;TPSPSIQYAQR | G55: 1;1;1 | H55: 3 | I55: 3 | J55: 0.0246 | K55: 9791;7196;5605 | L55: CDI97610.1;EUB56649.1 | M55: 379185.4767 | N55: 3447.140697
A56: EUB64195.1 | B56: hypothetical protein EGR_00739 [Echinococcus granulosus] | C56: 9.981164581 | D56: NA | E56: 46008.67713 | F56: ESTVTDLGNANK;ITIYTDNK;KPESQAQLITVANQLR | G56: 1;1;1 | H56: 3 | I56: 4 | J56: 0.087 | K56: 5612;2287;11827;11826 | L56: - | M56: 485248.3689 | N56: 23107.06519
A57: CDS17202.1 | B57: fructose 16 bisphosphate aldolase [Echinococcus multilocularis] | C57: 11.5250392 | D57: NA | E57: 39642.35865 | F57: AGQAEFLQLAK;ELLFTTDPEFAK;FAAINLENTEENR | G57: 1;1;1 | H57: 3 | I57: 3 | J57: 0.0992 | K57: 4707;7563;8993 | L57: - | M57: 345261.8627 | N57: 14385.91095
A58: EUB59398.1 | B58: Phosphoglycerate kinase [Echinococcus granulosus] | C58: 9.013940152 | D58: NA | E58: 44198.97029 | F58: AAGLLLNK;SLFDEAGAK;VSHVSTGGGASLELLEGK | G58: 1;1;1 | H58: 3 | I58: 4 | J58: 0.0843 | K58: 752;1989;11317;11316 | L58: - | M58: 635186.6548 | N58: 19849.58296
A59: CDS21878.1 | B59: long chain fatty acid coenzyme A ligase 5 [Echinococcus multilocularis] | C59: 11.5250392 | D59: NA | E59: 82623.23295 | F59: IGFYSGEPR;LSQGEYVAPEK;QTELSVVVCDTAVQALK | G59: 1;1;1 | H59: 3 | I59: 4 | J59: 0.0491 | K59: 2910;5280;12344;12343 | L59: CDI97041.1 | M59: 9469618.666 | N59: 210435.9704
A60: EUB61684.1 | B60: Rho GDP-dissociation inhibitor [Echinococcus granulosus] | C60: 11.5250392 | D60: NA | E60: 21656.91934 | F60: GHYNVTSVFTDDDEQEHLK;SEDEEVQSGALFR;VMLGSYAPR | G60: 1;1;1 | H60: 3 | I60: 3 | J60: 0.2147 | K60: 14959;8343;2575 | L60: CDS43731.1 | M60: 1300162.561 | N60: 108346.8801
A61: EUB64940.1 | B61: Thioredoxin peroxidase [Echinococcus granulosus] | C61: 4.750034255 | D61: NA | E61: 21391.68927 | F61: DVSLSDYR;DYGVLIEDQGIALR | G61: 1;1;1 | H61: 3 | I61: 3 | J61: 0.114 | K61: 2145;9416 | L61: - | M61: 438066.507 | N61: 27379.15669
A62: EUB59489.1 | B62: Serine/threonine-protein kinase N2 [Echinococcus granulosus] | C62: 11.5250392 | D62: NA | E62: 259044.4059 | F62: DNAASNEEAIASIQK;IFQTITEAK;ITESNTSVQQWVR | G62: 1;1;1 | H62: 3 | I62: 3 | J62: 0.0158 | K62: 9398;3125;9293 | L62: - | M62: 259537.233 | N62: 2218.266949
A63: CDS17725.1 | B63: exocyst complex component 1 [Echinococcus granulosus] | C63: 11.5250392 | D63: NA | E63: 94539.2676 | F63: IPGEEHLQAVSEK;NLSEEANLFPVVWR;YFSEIASAPK | G63: 1;1;1 | H63: 3 | I63: 3 | J63: 0.0442 | K63: 7917;10619;3854 | L63: - | M63: 974914.0106 | N63: 22672.41885
A64: CDS15065.1 | B64: syntaxin 1a [Echinococcus multilocularis] | C64: 11.5250392 | D64: NA | E64: 32973.19781 | F64: FVEVMQNYSK;HSEILAAPNQDER;IEYNVDQAK | G64: 1;1;1 | H64: 3 | I64: 3 | J64: 0.1103 | K64: 5573;8515;3424 | L64: - | M64: 399264.1509 | N64: 21013.90268
A65: EUB62659.1 | B65: calcium binding protein p22 [Echinococcus multilocularis] | C65: 5.937335038 | D65: NA | E65: 21312.68109 | F65: KPNSSGVTEYNNR;QDFLLIPELAINPLGDR | G65: 1;1 | H65: 2 | I65: 2 | J65: 0.1604 | K65: 8329;12912 | L65: CDS37236.1 | M65: 27814.29358 | N65: 2317.857799
A66: tr|Q2XNL7|Q2XNL7_TAESO | B66: Cytosolic fatty acid binding protein OS=Taenia solium OX=6204 GN=FABP PE=2 SV=1 | C66: 5.218700939 | D66: NA | E66: 15137.76776 | F66: LGVDFVTR;TTEFTFK | G66: 1;1 | H66: 2 | I66: 2 | J66: 0.1128 | K66: 1737;1465 | L66: - | M66: 5701619.868 | N66: 518329.0789
A67: EUB56511.1 | B67: Triosephosphate isomerase [Echinococcus granulosus] | C67: 7.683359466 | D67: NA | E67: 27105.80888 | F67: ILYGGSVTASNAK;VVIAYEPVWAIGTGK | G67: 1;1 | H67: 2 | I67: 2 | J67: 0.112 | K67: 5969;9845 | L67: CDS36936.1 | M67: 0 | N67: 0
A68: EUB63392.1 | B68: Major egg antigen [Echinococcus granulosus] | C68: 7.683359466 | D68: NA | E68: 36052.54949 | F68: DENGQTWFR;VENQTLSVHAK | G68: 1;1 | H68: 2 | I68: 2 | J68: 0.0635 | K68: 4370;5345 | L68: EUB63391.1 | M68: 126264.2711 | N68: 5489.750916
A69: CDS35735.1 | B69: neutral amino acid transporter A [Echinococcus multilocularis] | C69: 7.683359466 | D69: NA | E69: 52753.54906 | F69: FVLPFAGTMK;GASLLYAVEFINDR | G69: 1;1 | H69: 2 | I69: 3 | J69: 0.0491 | K69: 3830;9479;9478 | L69: CDS35736.1 | M69: 3842041.62 | N69: 295541.6631
A70: CDS20666.1 | B70: ectonucleotide pyrophosphatase:phosphodiesterase [Echinococcus granulosus] | C70: 7.683359466 | D70: NA | E70: 47353.20708 | F70: IEQTPSLK;LYASGTLTH | G70: 1;1 | H70: 2 | I70: 2 | J70: 0.0413 | K70: 1820;2234 | L70: - | M70: 3114341.072 | N70: 135406.1336
A71: EUB61786.1 | B71: V-type proton ATPase subunit d [Echinococcus granulosus] | C71: 6.641966781 | D71: NA | E71: 40760.46134 | F71: AYLEDFYR;HDLDELNIEIIR | G71: 1;1 | H71: 2 | I71: 2 | J71: 0.0565 | K71: 3374;8519 | L71: CUT99102.1 | M71: 801624.0605 | N71: 57258.86147
A72: EUB59973.1 | B72: Syntaxin-7 [Echinococcus granulosus] | C72: 7.683359466 | D72: NA | E72: 26468.67008 | F72: NLHEQAINQTTR;QQIDQFEEILK | G72: 1;1 | H72: 2 | I72: 2 | J72: 0.095 | K72: 7756;7338 | L72: - | M72: 95700.3072 | N72: 7975.0256
A73: CDS20169.1 | B73: elongation factor 2 [Echinococcus multilocularis] | C73: 6.139484848 | D73: NA | E73: 94001.82388 | F73: AYLPVNESFGFTAELR;VNFTVAEIR | G73: 1;1 | H73: 2 | I73: 2 | J73: 0.0294 | K73: 11976;3091 | L73: - | M73: 74236.83815 | N73: 1515.037513
A74: EUB54748.1 | B74: Histone H4 [Echinococcus granulosus] | C74: 7.683359466 | D74: NA | E74: 11336.34512 | F74: DAVTYTEHAK;TVTAMDVVYALK | G74: 1;1 | H74: 2 | I74: 3 | J74: 0.2136 | K74: 4154;6382;6607 | L74: - | M74: 711516.7613 | N74: 118586.1269
A75: EUB64574.1 | B75: Charged multivesicular body protein [Echinococcus granulosus] | C75: 5.937335038 | D75: NA | E75: 25721.11708 | F75: ASIQAISLNMQTLK;QNQMETVK | G75: 1;1 | H75: 2 | I75: 2 | J75: 0.0969 | K75: 8961;2383 | L75: - | M75: 237898.3318 | N75: 23789.83318
A76: EUB64982.1 | B76: fimbrin [Echinococcus multilocularis] | C76: 5.937335038 | D76: NA | E76: 68630.50014 | F76: TYDTEVGGK;VILEEPSLEK | G76: 1;1 | H76: 2 | I76: 2 | J76: 0.0307 | K76: 2295;4442 | L76: - | M76: 236552.8003 | N76: 8448.314295
A77: EUB54574.1 | B77: Heat shock protein HSP 90-alpha [Echinococcus granulosus] | C77: 6.213653105 | D77: NA | E77: 84372.53247 | F77: NPEDISQEEYGEFYK;YIDEEELNK | G77: 1;1 | H77: 2 | I77: 2 | J77: 0.0325 | K77: 12239;4374 | L77: - | M77: 316278.7823 | N77: 7906.969558
A78: EUB64129.1 | B78: Putative vesicle-associated membrane protein [Echinococcus granulosus] | C78: 3.841679733 | D78: NA | E78: 24529.04542 | F78: TEQFEADAQMFQSTAK | G78: 1 | H78: 1 | I78: 1 | J78: 0.0737 | K78: 12240 | L78: CDS37676.1 | M78: 246181.4083 | N78: 24618.14083
A79: EUB59143.1 | B79: alpha tocopherol transfer protein [Echinococcus multilocularis] | C79: 2.297805115 | D79: NA | E79: 36626.52072 | F79: IIFYNEGK | G79: 1 | H79: 1 | I79: 1 | J79: 0.0248 | K79: 2459 | L79: CDS40022.1 | M79: 624563.4584 | N79: 26023.47743
A80: EUB59131.1 | B80: hypothetical protein EGR_05994 [Echinococcus granulosus] | C80: 3.841679733 | D80: NA | E80: 41896.5462 | F80: TLTANIQTAK | G80: 1 | H80: 1 | I80: 1 | J80: 0.0258 | K80: 3255 | L80: CDS40008.1 | M80: 1473576.875 | N80: 54576.92129
A81: EUB62057.1 | B81: Major egg antigen p40 [Echinococcus multilocularis] | C81: 2.220145606 | D81: NA | E81: 35821.21255 | F81: NFKPEEITIK | G81: 1 | H81: 1 | I81: 1 | J81: 0.0318 | K81: 5258 | L81: - | M81: 0 | N81: 0
A82: tr|E5LBB8|E5LBB8_TAESO | B82: Trypsin-like protein OS=Taenia solium OX=6204 PE=2 SV=1 | C82: 2.908165687 | D82: NA | E82: 54088.77139 | F82: VNSPFDVALLR | G82: 1 | H82: 1 | I82: 1 | J82: 0.023 | K82: 5398 | L82: - | M82: 40061.98931 | N82: 1602.479572
A83: EUB56687.1 | B83: palmitoyltransferase ZDHHC20 [Echinococcus multilocularis] | C83: 3.841679733 | D83: NA | E83: 40481.37524 | F83: GLPIETTNDVGMIR | G83: 1 | H83: 1 | I83: 1 | J83: 0.0403 | K83: 8946 | L83: CDS36036.1 | M83: 384662.9489 | N83: 22627.23229
A84: EUB55684.1 | B84: Ras-related protein Rab-6A [Echinococcus granulosus] | C84: 3.841679733 | D84: NA | E84: 23606.05189 | F84: LVFLGEQSVGK | G84: 1 | H84: 1 | I84: 1 | J84: 0.0534 | K84: 4719 | L84: - | M84: 0 | N84: 0
A85: EUB62681.1 | B85: Ras-related protein Rab-14 [Echinococcus granulosus] | C85: 3.841679733 | D85: NA | E85: 24605.92488 | F85: GAAGTLLVYDITR | G85: 1 | H85: 1 | I85: 1 | J85: 0.058 | K85: 6856 | L85: - | M85: 0 | N85: 0
A86: EUB64492.1 | B86: regulator of microtubule dynamics protein [Echinococcus multilocularis] | C86: 3.841679733 | D86: NA | E86: 26668.37953 | F86: IAQCYDR | G86: 1 | H86: 1 | I86: 1 | J86: 0.0304 | K86: 1871 | L86: CDS41426.1 | M86: 0 | N86: 0
A87: EUB64338.1 | B87: Ras-related protein Rab-8B [Echinococcus granulosus] | C87: 3.841679733 | D87: NA | E87: 28408.52256 | F87: LLLIGDSGVGK;QWLTNIDDHANSDVER | G87: 1 | H87: 1 | I87: 4 | J87: 0.1093 | K87: 3351;12812;12663;12811;12827 | L87: - | M87: 148058.0131 | N87: 8709.294885
A88: EUB64306.1 | B88: ras protein Rab 4A [Echinococcus multilocularis] | C88: 3.841679733 | D88: NA | E88: 24411.24612 | F88: IQIWDTAGQER | G88: 1 | H88: 1 | I88: 1 | J88: 0.0493 | K88: 6455 | L88: CDS42361.1 | M88: 1541476.185 | N88: 154147.6185
A89: CDS17300.1 | B89: ras protein RABF2b [Echinococcus multilocularis] | C89: 2.800287048 | D89: NA | E89: 20005.12838 | F89: SFATQNGYMYFEASAK | G89: 1 | H89: 1 | I89: 1 | J89: 0.0856 | K89: 11983 | L89: - | M89: 0 | N89: 0

Sheet Additional file 2 Table S4
A1: Table S4 GO analysis of exosomal proteins from C. pisiformis
A2: Ontology | B2: Class | C2: Number of exosome-like vesicles | D2: Proteins of exosome-like vesicles
A3: biological_process | B3: biological regulation | C3: 20 | D3: CDS39914.1;EUB64338.1;Scaffold00182.gene7809;Scaffold00008.gene1166;Scaffold00025.gene2722;Scaffold00117.gene6478;CDS40507.1;LongOrf.asmbl_4567;CDI98679.1;CDI98601.1;LongOrf.asmbl_3332;CDS37299.1;LongOrf.asmbl_2208;Scaffold00001.gene212;CDS41064.1;LongOrf.asmbl_19230;CDS42180.1;EUB59351.1;LongOrf.asmbl_13014;EUB64038.1
A4: biological_process | B4: cell proliferation | C4: 4 | D4: LongOrf.asmbl_4567;CDS37299.1;LongOrf.asmbl_2208;CDS40507.1
A5: biological_process | B5: cellular component organization or biogenesis | C5: 11 | D5: CDS40507.1;LongOrf.asmbl_3332;EUB64338.1;Scaffold00051.gene4175;EUB64038.1;CDS39914.1;EUB58578.1;CDS42180.1;CDS37299.1;LongOrf.asmbl_2208;EUB62881.1
A6: biological_process | B6: cellular process | C6: 32 | D6: LongOrf.asmbl_13445;CDS39914.1;EUB64338.1;Scaffold00182.gene7809;Scaffold00008.gene1166;Scaffold00025.gene2722;Scaffold00117.gene6478;CDS37299.1;LongOrf.asmbl_2208;EUB56511.1;CDS40507.1;LongOrf.asmbl_4567;CDI98679.1;CDI98601.1;LongOrf.asmbl_3332;EUB59351.1;CDS43420.1;CDS41064.1;Scaffold00051.gene4175;CDI97827.1;LongOrf.asmbl_5775;LongOrf.asmbl_19230;EUB62881.1;Scaffold00001.gene212;EUB64038.1;LongOrf.asmbl_6705;EUB58578.1;CDS42180.1;LongOrf.asmbl_22588;Scaffold00012.gene1566;CDS37852.1;EUB63595.1
A7: biological_process | B7: developmental process | C7: 2 | D7: CDS40507.1;LongOrf.asmbl_19230
A8: biological_process | B8: growth | C8: 3 | D8: CDS40507.1;CDS37299.1;LongOrf.asmbl_2208
A9: biological_process | B9: immune system process | C9: 2 | D9: EUB64338.1;CDS40507.1
A10: biological_process | B10: localization | C10: 17 | D10: CDS39914.1;EUB64338.1;Scaffold00182.gene7809;Scaffold00008.gene1166;CDS40507.1;LongOrf.asmbl_3332;CDS39601.2;LongOrf.asmbl_4686;LongOrf.asmbl_11217;LongOrf.asmbl_4567;LongOrf.asmbl_19230;Scaffold00182.gene7814;EUB64129.1;LongOrf.asmbl_12894;CDS37299.1;LongOrf.asmbl_2208;CDS41064.1
A11: biological_process | B11: locomotion | C11: 5 | D11: LongOrf.asmbl_4567;CDS40507.1;CDS37299.1;LongOrf.asmbl_2208;CDS41064.1
A12: biological_process | B12: metabolic process | C12: 14 | D12: Scaffold00093.gene5763;LongOrf.asmbl_13445;EUB56511.1;CDS41064.1;CDI97827.1;LongOrf.asmbl_5775;LongOrf.asmbl_4567;LongOrf.asmbl_6705;Scaffold00049.gene4124;EUB64038.1;LongOrf.asmbl_22588;Scaffold00012.gene1566;CDS37852.1;CDS40507.1
A13: biological_process | B13: multi-organism process | C13: 4 | D13: LongOrf.asmbl_19230;CDS40507.1;EUB64038.1;CDS41064.1
A14: biological_process | B14: multicellular organismal process | C14: 5 | D14: EUB64338.1;LongOrf.asmbl_4567;LongOrf.asmbl_19230;CDS40507.1;CDS41064.1
A15: biological_process | B15: negative regulation of biological process | C15: 3 | D15: LongOrf.asmbl_4567;LongOrf.asmbl_19230;CDS42180.1
A16: biological_process | B16: positive regulation of biological process | C16: 7 | D16: EUB64338.1;LongOrf.asmbl_4567;CDS37299.1;LongOrf.asmbl_2208;CDS40507.1;LongOrf.asmbl_19230;EUB64038.1
A17: biological_process | B17: presynaptic process involved in chemical synaptic transmission | C17: 1 | D17: CDS39914.1
A18: biological_process | B18: regulation of biological process | C18: 18 | D18: CDS39914.1;EUB64338.1;Scaffold00182.gene7809;Scaffold00008.gene1166;Scaffold00025.gene2722;Scaffold00117.gene6478;CDS40507.1;LongOrf.asmbl_4567;CDI98679.1;CDI98601.1;LongOrf.asmbl_3332;CDS37299.1;LongOrf.asmbl_2208;Scaffold00001.gene212;CDS41064.1;LongOrf.asmbl_19230;CDS42180.1;EUB64038.1
A19: biological_process | B19: reproduction | C19: 3 | D19: LongOrf.asmbl_19230;CDS40507.1;CDS41064.1
A20: biological_process | B20: reproductive process | C20: 3 | D20: LongOrf.asmbl_19230;CDS40507.1;CDS41064.1
A21: biological_process | B21: response to stimulus | C21: 10 | D21: Scaffold00025.gene2722;Scaffold00117.gene6478;CDI98679.1;CDI98601.1;CDS40507.1;EUB63595.1;Scaffold00182.gene7809;CDS37299.1;LongOrf.asmbl_2208;CDS41064.1
A22: biological_process | B22: signaling | C22: 10 | D22: Scaffold00025.gene2722;Scaffold00117.gene6478;CDS37299.1;LongOrf.asmbl_2208;CDI98679.1;CDI98601.1;CDS40507.1;EUB64338.1;CDS41064.1;CDS39914.1
A23: cellular_component | B23: cell | C23: 31 | D23: EUB56627.1;EUB59351.1;EUB64338.1;Scaffold00008.gene1166;Scaffold00182.gene7809;LongOrf.asmbl_4567;CDS42180.1;Scaffold00182.gene7814;CDS39914.1;CDS41064.1;Scaffold00001.gene212;LongOrf.asmbl_22588;CDS37852.1;LongOrf.asmbl_19230;CDI97827.1;LongOrf.asmbl_5775;Scaffold00049.gene4124;LongOrf.asmbl_6705;EUB58578.1;LongOrf.asmbl_3332;Scaffold00051.gene4175;CDS43420.1;CDS37299.1;LongOrf.asmbl_13445;LongOrf.asmbl_2208;CDS40507.1;EUB64038.1;CDI98679.1;CDI98601.1;CUT99105.1;CDS37076.1
A24: cellular_component | B24: cell junction | C24: 1 | D24: CDS40507.1
A25: cellular_component | B25: cell part | C25: 31 | D25: EUB56627.1;EUB59351.1;EUB64338.1;Scaffold00008.gene1166;Scaffold00182.gene7809;LongOrf.asmbl_4567;CDS42180.1;Scaffold00182.gene7814;CDS39914.1;CDS41064.1;LongOrf.asmbl_22588;CDS37852.1;LongOrf.asmbl_19230;CDI97827.1;LongOrf.asmbl_5775;Scaffold00049.gene4124;LongOrf.asmbl_6705;EUB58578.1;LongOrf.asmbl_3332;Scaffold00051.gene4175;CDS43420.1;CDS37299.1;LongOrf.asmbl_13445;LongOrf.asmbl_2208;CDS40507.1;EUB64038.1;CDI98679.1;CDI98601.1;Scaffold00001.gene212;CUT99105.1;CDS37076.1
A26: cellular_component | B26: extracellular region | C26: 8 | D26: CUT99336.1;Scaffold00082.gene5373;Scaffold00001.gene212;EUB64338.1;LongOrf.asmbl_4567;LongOrf.asmbl_7386;EUB56651.1;EUB56649.1
A27: cellular_component | B27: extracellular region part | C27: 8 | D27: CUT99336.1;Scaffold00082.gene5373;Scaffold00001.gene212;EUB64338.1;LongOrf.asmbl_4567;LongOrf.asmbl_7386;EUB56651.1;EUB56649.1
A28: cellular_component | B28: macromolecular complex | C28: 15 | D28: EUB56627.1;EUB59351.1;LongOrf.asmbl_4567;CDS42180.1;LongOrf.asmbl_22588;CDS37852.1;EUB58578.1;CDS37299.1;LongOrf.asmbl_2208;CDS39914.1;LongOrf.asmbl_5775;LongOrf.asmbl_7386;EUB56651.1;EUB56649.1;LongOrf.asmbl_11217
A29: cellular_component | B29: membrane | C29: 31 | D29: EUB64338.1;Scaffold00008.gene1166;LongOrf.asmbl_4567;Scaffold00182.gene7814;CDS39914.1;CDS41064.1;LongOrf.asmbl_7513;CDI98601.1;Scaffold00025.gene2722;CDS40507.1;Scaffold00117.gene6478;LongOrf.asmbl_15237;CDS42260.1;CDS39601.2;EUB62759.1;CDS36036.1;Scaffold00003.gene558;EUB64129.1;EUB57119.1;CDS40655.1;Scaffold00001.gene212;LongOrf.asmbl_4686;LongOrf.asmbl_2573;LongOrf.asmbl_13014;LongOrf.asmbl_12894;EUB56651.1;CDS37299.1;LongOrf.asmbl_2208;LongOrf.asmbl_19230;LongOrf.asmbl_11217;CDS37076.1
A30: cellular_component | B30: membrane part | C30: 23 | D30: LongOrf.asmbl_4567;Scaffold00182.gene7814;LongOrf.asmbl_15237;CDS39914.1;CDS42260.1;CDS39601.2;EUB62759.1;CDS36036.1;Scaffold00003.gene558;EUB64129.1;EUB57119.1;LongOrf.asmbl_7513;CDS40655.1;Scaffold00001.gene212;LongOrf.asmbl_4686;LongOrf.asmbl_2573;LongOrf.asmbl_13014;LongOrf.asmbl_12894;EUB56651.1;CDS37299.1;LongOrf.asmbl_2208;LongOrf.asmbl_19230;LongOrf.asmbl_11217
A31: cellular_component | B31: membrane-enclosed lumen | C31: 3 | D31: EUB64338.1;CDS37299.1;LongOrf.asmbl_2208
A32: cellular_component | B32: organelle | C32: 22 | D32: EUB59351.1;EUB64338.1;Scaffold00008.gene1166;Scaffold00182.gene7809;LongOrf.asmbl_4567;CDS42180.1;LongOrf.asmbl_19230;CDS39914.1;EUB58578.1;Scaffold00182.gene7814;LongOrf.asmbl_3332;Scaffold00051.gene4175;CDS43420.1;LongOrf.asmbl_13445;Scaffold00001.gene212;EUB64038.1;LongOrf.asmbl_5775;CDS40507.1;CUT99105.1;CDS37299.1;LongOrf.asmbl_2208;CDS37076.1
A33: cellular_component | B33: organelle part | C33: 13 | D33: EUB59351.1;EUB64338.1;Scaffold00008.gene1166;LongOrf.asmbl_4567;CDS42180.1;EUB58578.1;CDS43420.1;LongOrf.asmbl_19230;Scaffold00001.gene212;CDS37299.1;LongOrf.asmbl_2208;CDS37076.1;Scaffold00182.gene7814
A34: cellular_component | B34: supramolecular complex | C34: 1 | D34: CDS43420.1
A35: cellular_component | B35: synapse | C35: 3 | D35: CDS39914.1;EUB64338.1;Scaffold00008.gene1166
A36: cellular_component | B36: synapse part | C36: 3 | D36: CDS39914.1;EUB64338.1;Scaffold00008.gene1166
A37: molecular_function | B37: binding | C37: 38 | D37: CDS42180.1;EUB64338.1;EUB58578.1;EUB59351.1;CDS39914.1;Scaffold00051.gene4175;CDS37236.1;Scaffold00049.gene4124;EUB64724.1;EUB64725.1;CDI98049.1;LongOrf.asmbl_4567;EUB63595.1;Scaffold00182.gene7814;EUB64038.1;EUB56079.1;LongOrf.asmbl_8448;CDS43420.1;EUB57119.1;EUB62881.1;Scaffold00144.gene7104;CDS40507.1;LongOrf.asmbl_23227;LongOrf.asmbl_22176;LongOrf.asmbl_6705;LongOrf.asmbl_2208;CDS37076.1;CDI98679.1;Scaffold00182.gene7809;Scaffold00008.gene1166;LongOrf.asmbl_19230;CDI98601.1;LongOrf.asmbl_3332;Scaffold00025.gene2722;Scaffold00117.gene6478;CDS37299.1;LongOrf.asmbl_22588;CDS37852.1
A38: molecular_function | B38: catalytic activity | C38: 32 | D38: LongOrf.asmbl_4567;Scaffold00049.gene4124;Scaffold00001.gene212;LongOrf.asmbl_5775;Scaffold00093.gene5763;CUT99105.1;EUB56511.1;CDI97827.1;LongOrf.asmbl_13445;EUB57119.1;LongOrf.asmbl_22588;LongOrf.asmbl_11217;CDS37852.1;Scaffold00144.gene7104;LongOrf.asmbl_6705;CDS41064.1;CDS36036.1;EUB62881.1;Scaffold00096.gene5894;CDS43420.1;CDS37076.1;EUB64338.1;Scaffold00182.gene7809;Scaffold00008.gene1166;LongOrf.asmbl_19230;CDI98601.1;LongOrf.asmbl_3332;Scaffold00025.gene2722;CDS40507.1;Scaffold00117.gene6478;Scaffold00182.gene7814;Scaffold00012.gene1566
A39: molecular_function | B39: molecular function regulator | C39: 2 | D39: CUT99336.1;Scaffold00082.gene5373
A40: molecular_function | B40: molecular transducer activity | C40: 1 | D40: Scaffold00144.gene7104
A41: molecular_function | B41: structural molecule activity | C41: 3 | D41: LongOrf.asmbl_7386;EUB56651.1;EUB56649.1
A42: molecular_function | B42: transporter activity | C42: 9 | D42: LongOrf.asmbl_4567;CDS39601.2;LongOrf.asmbl_4686;EUB57119.1;LongOrf.asmbl_15237;CDS42260.1;Scaffold00182.gene7814;LongOrf.asmbl_13014;LongOrf.asmbl_11217

Sheet Additional file 3 Table S5
A1: Table S5 miRNAs identified in exosome-like vesicles of C. pisiformis
A2: miRNA ID | B2: Location (5′- 3′) | C2: Read count | D2: Family | E2: mature sequence(5'-3') | F2: Length
A3: tpi-miR-277a-3p | B3: Tsm_contig_00002: 355,714–355,736/+ | C3: 182130 | D3: miR-277 | E3: UAAAUGCAUUUUCUGGCCCGUA | F3: =LEN(E3) -> 22
A4: tpi-miR-10a-5p | B4: Tsm_contig_00001: 733,585–733,607/− | C4: 28517 | D4: miR-10 | E4: CACCCUGUAGACCCGAGUUUGA | F4: 22
A5: tpi-miR-71-5p | B5: Tsm_contig_01703: 2,152–2,173/+ | C5: 16949 | D5: miR-71 | E5: UGAAAGACGAUGGUAGUGAGA | F5: 21
A6: tpi-miR-9-5p | B6: Tsm_contig_00972: 16,152–16,174/− | C6: 16472 | D6: miR-9 | E6: UCUUUGGUUAUCUAGCUGUGUG | F6: 22
A7: tpi-miR-3479a-3p | B7: Tsm_contig_00022: 149,861–149,883/− | C7: 10764 | D7: miR-3479 | E7: UAUUGCACGUUCUUUCGCCAUC | F7: 22
A8: tpi-miR-125-3p | B8: Tsm_contig_00587: 14,172–14,194/+ | C8: 2155 | D8: miR-125 | E8: CAACUCUAAUGUCCCGGGUUAU | F8: 22
A9: tpi-miR-4989-5p | B9: Tsm_contig_00002: 355,528–355,548/+ | C9: 2142 | D9: miR-4989 | E9: UGGGUAGUCGUUGCAUUUCC | F9: 20
A10: tpi-miR-4989-3p | B10: Tsm_contig_00002: 355,581–355,602/+ | C10: 1913 | D10: miR-4989 | E10: AAAAUGCACCAACUAUCUGAGA | F10: 22
A11: tpi-let-7-5p | B11: Tsm_contig_01305: 3,818–3,839/− | C11: 1826 | D11: let-7 | E11: UGAGGUAGUGUUUCGAAUGUCU | F11: 22
A12: tpi-miR-124a-3p | B12: Tsm_contig_02167: 4,346–4,366/+ | C12: 1365 | D12: miR-124 | E12: UAAGGCACGCGGUGAAUGCCA | F12: 21
A13: tpi-miR-61-3p | B13: Tsm_contig_00547: 54,161–54,183/+ | C13: 1188 | D13: miR-61 | E13: UGACUAGAAAGAGCACUCACAUCC | F13: 24
A14: tpi-miR-2a-3p | B14: Tsm_contig_00316: 47,939–47,960/+ | C14: 1119 | D14: miR-2 | E14: AAUCACAGCCCUGCUUGGAACC | F14: 22
A15: tpi-miR-219-5p | B15: Tsm_contig_03098: 2,169–2,191/− | C15: 995 | D15: miR-219 | E15: UGAUUGUCCAUUCGCAUUUCUUG | F15: 23
A16: tpi-miR-190-5p | B16: Tsm_contig_00076: 133,403–133,425/− | C16: 681 | D16: miR-190 | E16: AGAUAUGUUUGGGUUACUUGGUG | F16: 23
A17: tpi-miR-61-5p | B17: Tsm_contig_00547: 54,108–54,131/+ | C17: 618 | D17: miR-61 | E17: CGUGAGGCCCUUUCUUGUGCAUG | F17: 23
A18: tpi-miR-7-5p | B18: Tsm_contig_00222: 106,111–106,133/− | C18: 528 | D18: miR-7 | E18: UGGAAGACUGGUGAUAUGUUGU | F18: 22
A19: tpi-miR-7b-5p | B19: Tsm_contig_00022: 155,589–155,613/+ | C19: 387 | D19: miR-7 | E19: UGGAAGACUUGUGAUUAGAUUGUU | F19: 24
A20: tpi-miR-745-3p | B20: Tsm_contig_00001: 902–924/+ | C20: 347 | D20: miR-745 | E20: UGCUGCCUGGUAAGAGCUGUGA | F20: 22
A21: tpi-bantam-3p | B21: Tsm_contig_00288: 81,898–81,920/− | C21: 329 | D21: bantam | E21: UGAGAUCGCGAUUACAGCUGAU | F21: 22
A22: tpi-miR-1-5p | B22: Tsm_contig_00015: 112,264–112,284/+ | C22: 290 | D22: miR-1 | E22: UGGAAUGUUGUGAAGUAUGU | F22: 20
A23: tpi-miR-2162-3p | B23: Tsm_contig_00907: 20,879–20,900/+ | C23: 197 | D23: miR-2162 | E23: UAUUAUGCAACUUUUCACUCC | F23: 21
A24: tpi-miR-2c-3p | B24: Tsm_contig_01703: 2,286–2,306/+ | C24: 165 | D24: miR-2 | E24: UCACAGCCAAUAUUGAUGAA | F24: 20
A25: tpi-let-7-3p | B25: Tsm_contig_01305: 3,783–3,806/− | C25: 138 | D25: let-7 | E25: ACAUCCGUUUCACUAUCUGCAUA | F25: 23
A26: tpi-miR-124b-3p | B26: Tsm_contig_00021:132,917–132,937/− | C26: 130 | D26: miR-124 | E26: UAAGGCACGCGGUGAAUACC | F26: 20
A27: tpi-miR-133-3p | B27: Tsm_contig_00013: 123,944–123,965/+ | C27: 66 | D27: miR-133 | E27: UUGGUCCCCAUUAACCAGCCGC | F27: 22
A28: tpi-miR-71-3p | B28: Tsm_contig_01703: 2,205–2,228/+ | C28: 66 | D28: miR-71 | E28: UCUUGCUACUCCGUCUUUUCCU | F28: 22
A29: tpi-miR-87-3p | B29: Tsm_contig_00047: 21,990–22,011/+ | C29: 63 | D29: miR-87 | E29: GUGAGCAAAGUUUCAGGUGUUC | F29: 22
A30: tpi-miR-184-3p | B30: Tsm_contig_00173: 108,768–108,790/+ | C30: 57 | D30: miR-184 | E30: GGGACGGAAGUCUGAAAGGUUU | F30: 22
A31: tpi-miR-7b-3p | B31: Tsm_contig_00022: 155,642–155,663/+ | C31: 42 | D31: miR-7 | E31: CAACUAUCACGGUCUUCCAAG | F31: 21
A32: tpi-bantam-5p | B32: Tsm_contig_00288: 81,944–81,966/− | C32: 33 | D32: bantam | E32: CGGCUUUUCUCGCGUUCUGAGA | F32: 22
A33: tpi-miR-2d-3p | B33: Tsm_contig_01703: 2,250–2,270/− | C33: 31 | D33: miR-2 | E33: UACAGGCAAUGUUGACGACG | F33: 20
A34: tpi-miR-307-3p | B34: Tsm_contig_02301: 4,350–4,373/− | C34: 29 | D34: miR-307 | E34: UCACAACCUACUUGAUUGAGG | F34: 21
A35: tpi-miR-153-3p | B35: Tsm_contig_00050: 147,636–147,658/− | C35: 24 | D35: miR-153 | E35: UUGCAUAGUCUCAUAAGUGCCA | F35: 22
A36: tpi-miR-281-3p | B36: Tsm_contig_00278: 50,132–50,154/+ | C36: 23 | D36: miR-281 | E36: UGUCAUGGAGUUGCUCUCUAUA | F36: 22
A37: tpi-miR-36a-3p | B37: Tsm_contig_00495: 44,929–44,951/− | C37: 16 | D37: miR-36 | E37: UCACCGGGUAGACAUUCCUUGC | F37: 22
A38: tpi-miR-277b-3p | B38: Tsm_contig_00002: 355,714–355,733/+ | C38: 9 | D38: miR-277 | E38: UAAAUGCAAAAUAUCUGGUUAUG | F38: 23
A39: tpi-miR-87-5p | B39: Tsm_contig_00047: 21,917–21,939/+ | C39: 5 | D39: miR-87 | E39: CCACCUGUCAUUUUGCUCGAACC | F39: 23
A40: tpi-miR-10293-3p | B40: Tsm_contig_00406: 472–495/− | C40: 4 | D40: miR-10293 | E40: UAAUUCGAGUCAACAGGGUCGUU | F40: 23
A41: tpi-miR-2c-5p | B41: Tsm_contig_01703: 2,252–2,274/+ | C41: 4 | D41: miR-2 | E41: UCGUCAACAUUGCCUGUAGACA | F41: 22
A42: tpi-miR-2162-5p | B42: Tsm_contig_00907: 20,879–20,900/+ | C42: 4 | D42: miR-2162 | E42: AGUGGAUUUGUUGCAUAUUAUAC | F42: 23
A43: tpi-miR-2b-3p | B43: Tsm_contig_01703: 2,388–2,412/+ | C43: 1 | D43: miR-2 | E43: UAUCACAGCCCUGCUUGGGACA | F43: 22

Sheet Additional file 3 Table S6
A1: Table S6 miRNAs identified in metacestodes of C. pisiformis
A2: miRNA ID | B2: Location (5′- 3′) | C2: Read count | D2: Family | E2: mature sequence(5'-3') | F2: Length
A3: tpi-miR-71-5p | B3: Tsm_contig_01703: 2,152–2,173/+ | C3: 2466959 | D3: miR-71 | E3: UGAAAGACGAUGGUAGUGAGA | F3: =LEN(E3) -> 21
A4: tpi-miR-1-5p | B4: Tsm_contig_00015: 112,264–112,284/+ | C4: 994012 | D4: miR-1 | E4: UGGAAUGUUGUGAAGUAUGU | F4: 20
A5: tpi-let-7-5p | B5: Tsm_contig_01305: 3,818–3,839/− | C5: 852239 | D5: let-7 | E5: UGAGGUAGUGUUUCGAAUGUCU | F5: 22
A6: tpi-miR-2c-3p | B6: Tsm_contig_01703: 2,286–2,306/+ | C6: 389348 | D6: miR-2 | E6: UCACAGCCAAUAUUGAUGAA | F6: 20
A7: tpi-miR-87-3p | B7: Tsm_contig_00047: 21,990–22,011/+ | C7: =75386+281970 -> 357356 | D7: miR-87 | E7: GUGAGCAAAGUUUCAGGUGU | F7: 20
A8: tpi-miR-9-5p | B8: Tsm_contig_00972: 16,152–16,174/− | C8: 231304 | D8: miR-9 | E8: UCUUUGGUUAUCUAGCUGUGUG | F8: 22
A9: tpi-miR-2b-3p | B9: Tsm_contig_01703: 2,388–2,412/+ | C9: 199009 | D9: miR-2 | E9: UAUCACAGCCCUGCUUGGGACA | F9: 22
A10: tpi-miR-61-3p | B10: Tsm_contig_00547: 54,161–54,183/+ | C10: =639+153926 -> 154565 | D10: miR-61 | E10: UGACUAGAAAGAGCACUCACAUCC | F10: 24
A11: tpi-miR-4989-3p | B11: Tsm_contig_00002: 355,581–355,602/+ | C11: 152953 | D11: miR-4989 | E11: AAAAUGCACCAACUAUCUGAGA | F11: 22
A12: tpi-miR-277a-3p | B12: Tsm_contig_00002: 355,714–355,736/+ | C12: 142734 | D12: miR-277 | E12: UAAAUGCAUUUUCUGGCCCGUA | F12: 22
A13: tpi-miR-190-5p | B13: Tsm_contig_00076: 133,403–133,425/− | C13: =115578+17698 -> 133276 | D13: miR-190 | E13: AGAUAUGUUUGGGUUACUUGGUG | F13: 23
A14: tpi-miR-745-3p | B14: Tsm_contig_00001: 902–924/+ | C14: 115210 | D14: miR-745 | E14: UGCUGCCUGGUAAGAGCUGUGA | F14: 22
A15: tpi-miR-2a-3p | B15: Tsm_contig_00316: 47,939–47,960/+ | C15: 103949 | D15: miR-2 | E15: AAUCACAGCCCUGCUUGGAACC | F15: 22
A16: tpi-bantam-3p | B16: Tsm_contig_00288: 81,898–81,920/− | C16: 77413 | D16: bantam | E16: UGAGAUCGCGAUUACAGCUGAU | F16: 22
A17: tpi-miR-3479a-3p | B17: Tsm_contig_00022: 149,946–149,968/− | C17: 68397 | D17: miR-3479 | E17: UAUUGCACGUUCUUUCGCCAUC | F17: 22
A18: tpi-miR-219-5p | B18: Tsm_contig_003098: 2,169–2,191/− | C18: 66701 | D18: miR-219 | E18: UGAUUGUCCAUUCGCAUUUCUUG | F18: 23
A19: tpi-miR-281-3p | B19: Tsm_contig_00278: 50,132–50,154/+ | C19: =31110+22656 -> 53766 | D19: miR-281 | E19: UGUCAUGGAGUUGCUCUCUAUA | F19: 22
A20: tpi-miR-10a-5p | B20: Tsm_contig_00001: 733,585–733,607/− | C20: 51870 | D20: miR-10 | E20: CACCCUGUAGACCCGAGUUUGA | F20: 22
A21: tpi-miR-124b-3p | B21: Tsm_contig_00021:132,917–132,937/− | C21: 46140 | D21: miR-124 | E21: UAAGGCACGCGGUGAAUACC | F21: 20
A22: tpi-miR-7-5p | B22: Tsm_contig_00222: 106,111–106,133/− | C22: 36691 | D22: miR-7 | E22: UGGAAGACUGGUGAUAUGUUGU | F22: 22
A23: tpi-miR-2162-3p | B23: Tsm_contig_00907: 20,879–20,900/+ | C23: 23990 | D23: miR-2162 | E23: UAUUAUGCAACUUUUCACUCC | F23: 21
A24: tpi-miR-184-3p | B24: Tsm_contig_00173: 108,768–108,790/+ | C24: 18835 | D24: miR-184 | E24: GGGACGGAAGUCUGAAAGGUUU | F24: 22
A25: tpi-miR-277b-3p | B25: Tsm_contig_00002: 355,714–355,733/+ | C25: 18724 | D25: miR-277 | E25: UAAAUGCAAAAUAUCUGGUUAUG | F25: 23
A26: tpi-miR-7b-5p | B26: Tsm_contig_00022: 155,589–155,613/+ | C26: 16768 | D26: miR-7 | E26: UGGAAGACUUGUGAUUAGAUUGUU | F26: 24
A27: tpi-miR-124a-3p | B27: Tsm_contig_02167: 4,346–4,366/+ | C27: =5153+4630+1733+1773 -> 13289 | D27: miR-124 | E27: UAAGGCACGCGGUGAAUGCCA | F27: 21
A28: tpi-miR-4989-5p | B28: Tsm_contig_00002: 355,528–355,548/+ | C28: 3194 | D28: miR-4989 | E28: UGGGUAGUCGUUGCAUUUCC | F28: 20
A29: tpi-miR-133-3p | B29: Tsm_contig_00013: 123,944–123,965/+ | C29: =2637+333 -> 2970 | D29: miR-133 | E29: UUGGUCCCCAUUAACCAGCCGC | F29: 22
A30: tpi-miR-2c-5p | B30: Tsm_contig_01703: 2,252–2,274/+ | C30: =2356+465 -> 2821 | D30: miR-2 | E30: UCGUCAACAUUGCCUGUAGACA | F30: 22
A31: tpi-miR-153-3p | B31: Tsm_contig_00050: 147,636–147,658/− | C31: 2743 | D31: miR-153 | E31: UUGCAUAGUCUCAUAAGUGCCA | F31: 22
A32: tpi-miR-61-5p | B32: Tsm_contig_00547: 54,108–54,131/+ | C32: 2352 | D32: miR-61 | E32: CGUGAGGCCCUUUCUUGUGCAUG | F32: 23
A33: tpi-let-7-3p | B33: Tsm_contig_01305: 3,783–3,806/− | C33: 1728 | D33: let-7 | E33: ACAUCCGUUUCACUAUCUGCAUA | F33: 23
A34: tpi-miR-36a-3p | B34: Tsm_contig_00495: 44,929–44,951/− | C34: 1551 | D34: miR-36 | E34: UCACCGGGUAGACAUUCCUUGC | F34: 22
A35: tpi-miR-125-3p | B35: Tsm_contig_00587: 14,172–14,194/+ | C35: =494+993 -> 1487 | D35: miR-125 | E35: CAACUCUAAUGUCCCGGGUUAU | F35: 22
A36: tpi-miR-307-3p | B36: Tsm_contig_02301: 4,350–4,373/− | C36: =618+321 -> 939 | D36: miR-307 | E36: UCACAACCUACUUGAUUGAGG | F36: 21
A37: tpi-miR-10293-3p | B37: Tsm_contig_00406: 472–495/− | C37: 723 | D37: miR-10293 | E37: UAAUUCGAGUCAACAGGGUCGUU | F37: 23
A38: tpi-bantam-5p | B38: Tsm_contig_00288: 81,944–81,966/− | C38: 366 | D38: bantam | E38: CGGCUUUUCUCGCGUUCUGAGA | F38: 22
A39: tpi-miR-2162-5p | B39: Tsm_contig_00907: 20,879–20,900/+ | C39: =20+234 -> 254 | D39: miR-2162 | E39: AGUGGAUUUGUUGCAUAUUAUAC | F39: 23
A40: tpi-miR-7b-3p | B40: Tsm_contig_00022: 155,642–155,663/+ | C40: 187 | D40: miR-7 | E40: CAACUAUCACGGUCUUCCAAG | F40: 21
A41: tpi-miR-71-3p | B41: Tsm_contig_01703: 2,205–2,228/+ | C41: 95 | D41: miR-71 | E41: UCUUGCUACUCCGUCUUUUCCU | F41: 22
A42: tpi-miR-2d-3p | B42: Tsm_contig_01703: 2,250–2,270/− | C42: 54 | D42: miR-2 | E42: UACAGGCAAUGUUGACGACG | F42: 20
A43: tpi-miR-87-5p | B43: Tsm_contig_00047: 21,917–21,939/+ | C43: 51 | D43: miR-87 | E43: CCACCUGUCAUUUUGCUCGAACC | F43: 23
A44: tpi-miR-125-5p | B44: Tsm_contig_00587: 14,119–14,140/+ | C44: 91577 | D44: miR-125 | E44: UCCCUGAGACCCUAGAGUUGUC | F44: 22
A45: tpi-miR-96-5p | B45: Tsm_contig_00412: 68,658–68,679/+ | C45: 3447 | D45: miR-96 | E45: AUUGGCACUUUUGGAAUUGUC | F45: 21
A46: tpi-miR-190-3p | B46: Tsm_contig_00076: 133,364–133,383/− | C46: 1271 | D46: miR-190 | E46: CCAGUGACCAAACAUAUUC | F46: 19
A47: tpi-miR-3479a-5p | B47: Tsm_contig_00022: 149,893–149,916/− | C47: =11+532 -> 543 | D47: miR-3479 | E47: CGGUGAAAGUUUAUGCAUUUA | F47: 21
A48: tpi-miR-9-3p | B48: Tsm_contig_00972: 16,205–16,228/− | C48: 471 | D48: miR-9 | E48: CAAGGCUAGAUUUCCAAACAAA | F48: 22
A49: tpi-miR-2a-5p | B49: Tsm_contig_00316: 47,886–47,908/+ | C49: =106+201 -> 307 | D49: miR-2 | E49: CGUUCCAGGGGGAUGUGAGUUUA | F49: 23
A50: tpi-miR-153-5p | B50: Tsm_contig_00050: 147,689–147,701/− | C50: 14 | D50: miR-153 | E50: AUGCUUACGAGACGUGCACUC | F50: 21
A51: tpi-miR-219-3p | B51: Tsm_contig_003098: 2,222–2,245/− | C51: 13 | D51: miR-219 | E51: AGAUGUGUGUAUGGGCAUCGCA | F51: 22
A52: tpi-miR-31-5p | B52: Tsm_contig_00183: 113,814–113,837/− | C52: 12 | D52: miR-31 | E52: UGGCAAGAUACUGGCGAAGCUGA | F52: 23
A53: tpi-miR-184-5p | B53: Tsm_contig_00173: 108,715–108,737/+ | C53: 4 | D53: miR-184 | E53: ACCUAUCACACUUCAGUCC | F53: 19
A54: tpi-miR-307-5p | B54: Tsm_contig_02301: 4,403–4,424/− | C54: 4 | D54: miR-307 | E54: CCUCAUCCCGUGGGUUGAGCGAUG | F54: 24
A55: tpi-miR-2d-5p | B55: Tsm_contig_01703: 2,197–2,217/− | C55: 3 | D55: miR-2 | E55: CAUCAAUAUUGGCUGUGACAU | F55: 21
A56: tpi-miR-277b-5p | B56: Tsm_contig_00002: 355,661–355,684/+ | C56: 2 | D56: miR-277 | E56: AGACCAGAUUUUGCAGUUUA | F56: 20
A57: tpi-miR-36b-3p | B57: Tsm_contig_00086: 22,153–22,175/− | C57: 2 | D57: miR-36 | E57: UCACCGGGUAGUUAUUACGCCU | F57: 22
A58: tpi-miR-36a-5p | B58: Tsm_contig_00495: 44,876–44,898/− | C58: 1 | D58: miR-36 | E58: ACGGAUUGUCCGUCCGGUAA | F58: 20
A59: tpi-miR-96-3p | B59: Tsm_contig_00412: 68,711–68,733/+ | C59: 1 | D59: miR-96 | E59: GACGGUCUAAAAGUGCCGAACA | F59: 22
A60: tpi-miR-31-3p | B60: Tsm_contig_00183: 113,761–113,781/− | C60: 1 | D60: miR-31 | E60: AGCUUCGUCUGGUCUUGCUGCA | F60: 22
A61: tpi-miR-133-5p | B61: Tsm_contig_00015: 123,903–123,925/+ | C61: 1 | D61: miR-133 | E61: GGCUGAUUUGUGGGGCUCAGAA | F61: 22

Sheet Additional file 3 Table S7
A1: Table S7 Newly discovered miRNAs in exosome-like vesicles and metacestodes of C. pisiformis
A2: miRNA ID | B2: Chromosome | C2: Strand | D2: Sequence(mature) | E2: Sequence(star) | F2: Start | G2: End | H2: Sequence(precursor) | I2: Tag info
A3: novel_mir1 | B3: EG_S00077 | C3: - | D3: uggcggugguguugguggu | E3: ccccaccaccaccagc | F3: 8867 | G3: 8916 | H3: ccccaccaccaccagcagcagcaguguuguuggcggugguguugguggu | I3: tag57006_100,tag12057_12
A4: novel_mir2 | B4: EG_S00133 | C4: - | D4: uugguggcucaaauggau | E4: uuuuuugagucccaagc | F4: 133496 | G4: 133542 | H4: uuuuuugagucccaagcuauguggcauuuugguggcucaaauggau | I4: tag31689_18
A5: novel_mir3 | B5: EG_S00040 | C5: + | D5: uggcgguggugaugguggu | E5: cacuacccaucgugucu | F5: 388913 | G5: 388990 | H5: cacuacccaucgugucuaagucaucaucacgcuccacuugugcgaggggugguggcgcuggcgguggugaugguggu | I5: tag43711_148,tag51642_510,tag55643_68
A6: novel_mir4 | B6: EG_S00002 | C6: - | D6: uggcgguggcgguggagg | E6: cacauugaucaccaaua | F6: 996466 | G6: 996515 | H6: uggcgguggcgguggaggcaaugguggagaagcacauugaucaccaaua | I6: tag3681_22,tag63178_15,tag1414_182,tag69527_40
A7: novel_mir5 | B7: EG_S00004 | C7: - | D7: cccaccgcugccaccacu | E7: aggaggcagugguggcg | F7: 75639 | G7: 75697 | H7: cccaccgcugccaccacuuccacccguucggggcgagggagaggaggcagugguggcg | I7: tag48560_73,tag49091_23958,tag40760_85,tag43035_28520,tag2087_11814,tag20902_38
A8: novel_mir6 | B8: EG_S00095 | C8: - | D8: cgguggugguggaggagg | E8: accaccaccacuacugcc | F8: 10449 | G8: 10527 | H8: accaccaccacuacugccgcuaccgcccucaacuucacuuugagggaauggugaugauggcgguggugguggaggagg | I8: tag5351_722,tag29365_33,tag39553_15,tag18388_1183,tag51877_1642,tag54656_2361,tag34580_20,tag35039_559,tag74303_79,tag10110_37,tag24363_145
A9: novel_mir7 | B9: EG_S00072 | C9: + | D9: gcggugguggugguggugg | E9: cucgcuccucccaccguuc | F9: 347160 | G9: 347201 | H9: cucgcuccucccaccguucccggcggugguggugguggugg | I9: tag20233_459,tag64651_561,tag34480_1489,tag54851_277,tag52014_384,tag31190_418,tag8280_6945,tag58623_860,tag276_40,tag24319_6722,tag22040_155,tag33141_149,tag32882_3788,tag64793_803,tag66035_3856,tag18257_92
A10: novel_mir8 | B10: EG_S00024 | C10: - | D10: ugacuggcuggcuggcug | E10: guuaguuggcuucacc | F10: 875725 | G10: 875761 | H10: guuaguuggcuucaccgcugacuggcuggcuggcug | I10: tag4133_26
A11: novel_mir8 | B11: EG_S00139 | C11: + | D11: ugacuggcuggcuggcug | E11: auuggucaguuaguuggc | F11: 91742 | G11: 91786 | H11: auuggucaguuaguuggcuucaccgcugacuggcuggcuggcug
A12: novel_mir8 | B12: EG_S00139 | C12: + | D12: ugacuggcuggcuggcug | E12: guuaguuggcuucacc | F12: 92386 | G12: 92422 | H12: guuaguuggcuucaccgcugacuggcuggcuggcug
A13: novel_mir9 | B13: EG_S00130 | C13: - | D13: gaagguguguccgcauggcagg | E13: uggcaguggaugcaacgugcug | F13: 111848 | G13: 111932 | H13: uggcaguggaugcaacgugcugucacgaccuugucgugugacagcagacaagguugcaagcagaagguguguccgcauggcagg | I13: tag65498_44,tag60141_300,tag11155_10,tag66709_29
A14: novel_mir10 | B14: EG_S00006 | C14: - | D14: ucgaugguggccguggcggg | E14: agcggcgucuuccccucgagg | F14: 1272843 | G14: 1272907 | H14: ucgaugguggccguggcgggcacgcagccgcugcugcgaguuaagcggcgucuuccccucgagg | I14: tag6189_69
A15: novel_mir11 | B15: EG_S00406 | C15: + | D15: uucguagguucgaauccu | E15: gaugcgaaugggcuacgagg | F15: 7397 | G15: 7474 | H15: uucguagguucgaauccuacuugcggcauguuuugugugcgugcaugggugagcagagaugcgaaugggcuacgagg | I15: tag42240_22,tag32460_15
A16: novel_mir12 | B16: EG_S00170 | C16: - | D16: guggugguggugguggug | E16: cauccucgcuacucacacugcag | F16: 111001 | G16: 111082 | H16: gugguggugguggugguguuggugagggugguggauuuacagcaugacacuugugacacauccucgcuacucacacugcag | I16: tag61761_9496,tag42214_1753,tag70067_7866,tag23661_1324,tag63752_60
A17: novel_mir13 | B17: EG_S00007 | C17: + | D17: gcccgcguggccuaaugga | E17: gaggaggcucguggggug | F17: 903617 | G17: 903655 | H17: gaggaggcucguggggugagcccgcguggccuaaugga | I17: tag13717_522,tag14549_6335,tag66638_805,tag40006_3522,tag16111_11,tag33311_295,tag13768_488,tag54593_168,tag8229_817
A18: novel_mir14 | B18: EG_S00007 | C18: - | D18: ccuucguuucuuugccugcgc | E18: augggcggaaaaaaugcaggag | F18: 252143 | G18: 252200 | H18: ccuucguuucuuugccugcgcgcacgccugugcguaugggcggaaaaaaugcaggag
A19: novel_mir15 | B19: EG_S00210 | C19: - | D19: guacaaagggcagggacguaau | E19: uaugacuugcgcuuacuagga | F19: 68575 | G19: 68629 | H19: guacaaagggcagggacguaaucagcgcaagcuuaugacuugcgcuuacuagga | I19: tag30701_17,tag66944_16,tag24678_12,tag70541_29,tag72915_22,tag62121_12,tag63876_20,tag70558_28,tag17371_96,tag52401_31,tag56763_43,tag8877_102,tag44192_94,tag841_120,tag5723_20,tag42979_70,tag21655_19,tag45109_32,tag29065_12,tag68124_34,tag34061_750,tag36703_43,tag52990_57,tag44839_22,tag46127_11,tag73501_236,tag28022_22,tag26894_12,tag70069_20,tag4878_13,tag9880_32,tag14515_16,tag63828_49,tag50452_20,tag49598_78,tag70999_42,tag37941_11,tag32966_65,tag63616_30,tag36602_25,tag14839_18,tag48733_62,tag50664_135,tag39153_85,tag37808_14,tag38698_161,tag33854_16,tag22805_12,tag36898_16,tag28044_266,tag15062_17,tag1316_56,tag24776_17,tag12883_23,tag25342_32,tag55992_19,tag11207_16,tag8932_82,tag61359_176,tag73830_122,tag34557_617,tag66071_393,tag69299_78,tag67417_65,tag41376_35,tag49680_16,tag72932_43,tag10226_28,tag44304_16,tag46549_89,tag5449_24,tag34633_68,tag70121_19,tag2965_16,tag7445_55,tag66741_55,tag14580_12,tag4009_23,tag62355_25,tag42223_38,tag10564_21,tag58033_230,tag27986_16,tag60358_21,tag64522_45,tag4012_123,tag30886_87,tag48638_495,tag29865_16,tag13044_19,tag67001_11,tag45408_57,tag3050_66,tag72987_44,tag47050_34,tag3415_49,tag1715_223,tag57851_16,tag42091_22,tag54632_147,tag66227_89,tag25144_20,tag20165_234,tag66078_171,tag40248_113,tag9197_27,tag57698_21,tag61078_17,tag32605_15,tag47568_11,tag37295_14,tag55339_17,tag15707_77,tag4705_35,tag32268_47,tag40272_32,tag38666_21,tag46522_20,tag42581_20,tag58319_274,tag11179_10,tag69844_56,tag20581_22,tag69915_14,tag69910_10,tag52717_200,tag20203_115,tag14204_39,tag33154_15,tag38877_311,tag47019_33,tag53853_114,tag38282_11,tag22030_28,tag49449_25,tag6297_30,tag49314_12,tag36019_11,tag70891_24,tag18701_31,tag67450_16,tag5343_37,tag8800_21,tag29196_13,tag223_29,tag5416_27,tag41242_76,tag44193_13,tag57900_252,tag4960_12
A20: novel_mir16 | B20: EG_S00084 | C20: - | D20: agguagugauggcgguggug | E20: cccuccggcaucacucgucg | F20: 330906 | G20: 330963 | H20: agguagugauggcggugguggcgaaaccaaugcuccacccuccggcaucacucgucg | I20: tag7049_187,tag32496_61,tag71904_137,tag4896_285,tag74351_1325,tag38224_17,tag62688_118,tag55706_117
A21: novel_mir17 | B21: EG_S00139 | C21: + | D21: acgucuguccgagcgucggc | E21: cgugccgucccgugc | F21: 90249 | G21: 90330 | H21: acgucuguccgagcgucggcuuauaaaccaucacugugugcaacgagcgguggcuggggagagugccgugccgucccgugc | I21: tag31393_11,tag23384_10,tag63371_72,tag68917_341,tag30931_125
A22: novel_mir18 | B22: EG_S00380 | C22: + | D22: ugaucgcauugcuggcacg | E22: ugguucuuuugugacuuggc | F22: 8329 | G22: 8380 | H22: ugguucuuuugugacuuggccggucgccugguugaucgcauugcuggcacg | I22: tag7125_10,tag70049_17,tag35649_10

Sheet Additional file 4 Table S8
A1: Table S8 The potential targets of exosomal miRNAs of C.pisiformis
A2: miRNA ID | B2: Target ID | C2: RNAhybrid MEF | D2: RNAhybrid Pvalue | E2: miRanda MEF | F2: miRanda score
A3: bantam-3p_6 | B3: NM_001082025.1 | C3: -26.8 | D3: 0.659478 | E3: NA | F3: NA
A4: bantam-3p_6 | B4: NM_001082060.1 | C4: NA | D4: NA | E4: -20.7 | F4: 153
A5: bantam-3p_6 | B5: NM_001082100.1 | C5: -26.7 | D5: 0.509729 | E5: -20.34 | F5: 153
A6: bantam-3p_6 | B6: NM_001082106.1 | C6: -27 | D6: 0.487778 | E6: NA | F6: NA
A7: bantam-3p_6 | B7: NM_001082131.1 | C7: -24.1 | D7: 0.681151 | E7: NA | F7: NA
A8: bantam-3p_6 | B8: NM_001082178.1 | C8: -26.2 | D8: 0.380413 | E8: NA | F8: NA
A9: bantam-3p_6 | B9: NM_001082226.1 | C9: -25.2 | D9: 0.623403 | E9: -21.73 | F9: 159
A10: bantam-3p_6 | B10: NM_001082285.2 | C10: -26.6 | D10: 0.563934 | E10: NA | F10: NA
A11: bantam-3p_6 | B11: NM_001082397.1 | C11: -26.7 | D11: 0.569739 | E11: NA | F11: NA
A12: bantam-3p_6 | B12: NM_001082760.1 | C12: -24.4 | D12: 0.7961 | E12: NA | F12: NA
A13: bantam-3p_6 | B13: NM_001082778.1 | C13: -28 | D13: 0.52406 | E13: NA | F13: NA
A14: bantam-3p_6 | B14: NM_001101716.1 | C14: NA | D14: NA | E14: -21.33 | F14: 151
A15: bantam-3p_6 | B15: NM_001109821.1 | C15: NA | D15: NA | E15: -20.53 | F15: 163
A16: bantam-3p_6 | B16: NM_001142260.1 | C16: -25.5 | D16: 0.710138 | E16: NA | F16: NA
A17: bantam-3p_6 | B17: NM_001167207.1 | C17: -25.4 | D17: 0.445897 | E17: -22.07 | F17: 162
A18: bantam-3p_6 | B18: NM_001167226.1 | C18: -25.4 | D18: 0.445897 | E18: -22.07 | F18: 162
A19: bantam-3p_6 | B19: NM_001167249.1 | C19: -25 | D19: 0.511286 | E19: NA | F19: NA
A20: bantam-3p_6 | B20: NM_001167299.1 | C20: -23.6 | D20: 0.751135 | E20: NA | F20: NA
A21: bantam-3p_6 | B21: NM_001167301.1 | C21: -25.2 | D21: 0.478041 | E21: NA | F21: NA
A22: bantam-3p_6 | B22: NM_001167337.1 | C22: -25.4 | D22: 0.445897 | E22: -22.07 | F22: 162
A23: bantam-3p_6 | B23: NM_001167359.1 | C23: -24.1 | D23: 0.649259 | E23: NA | F23: NA
A24: bantam-3p_6 | B24: NM_001167361.1 | C24: -25.3 | D24: 0.451373 | E24: NA | F24: NA
A25: bantam-3p_6 | B25: NM_001171314.1 | C25: -27.8 | D25: 0.738797 | E25: NA | F25: NA
A26: bantam-3p_6 | B26: NM_001171360.1 | C26: NA | D26: NA | E26: -20.65 | F26: 156
A27: bantam-3p_6 | B27: NM_001195763.1 | C27: -27.1 | D27: 0.471151 | E27: NA | F27: NA
A28: bantam-3p_6 | B28: NM_001198936.1 | C28: -25.7 | D28: 0.568353 | E28: -25.3 | F28: 149
A29: bantam-3p_6 | B29: NM_001199368.1 | C29: NA | D29: NA | E29: -20.37 | F29: 167
A30: bantam-3p_6 | B30: NM_001277089.1 | C30: -24.2 | D30: 0.59987 | E30: NA | F30: NA
A31: bantam-3p_6 | B31: NR_033236.1 | C31: -20.3 | D31: 0.466405 | E31: NA | F31: NA
A32: bantam-3p_6 | B32: NR_126590.1 | C32: -21.3 | D32: 0.262185 | E32: NA | F32: NA
A33: bantam-3p_6 | B33: XM_002707964.3 | C33: -25.5 | D33: 0.491249 | E33: NA | F33: NA
A34: bantam-3p_6 | B34: XM_002708031.3 | C34: -25.9 | D34: 0.664841 | E34: NA | F34: NA
A35: bantam-3p_6 | B35: XM_002708194.3 | C35: -28.9 | D35: 0.451713 | E35: NA | F35: NA
A36: bantam-3p_6 | B36: XM_002708329.3 | C36: -28.1 | D36: 0.780862 | E36: NA | F36: NA
A37: bantam-3p_6 | B37: XM_002708366.3 | C37: -24.5 | D37: 0.791843 | E37: NA | F37: NA
A38: bantam-3p_6 | B38: XM_002708389.3 | C38: -30.1 | D38: 0.216335 | E38: NA | F38: NA
A39: bantam-3p_6 | B39: XM_002708440.3 | C39: -27.8 | D39: 0.4175 | E39: NA | F39: NA
A40: bantam-3p_6 | B40: XM_002708549.1 | C40: -25.7 | D40: 0.41083 | E40: NA | F40: NA
A41: bantam-3p_6 | B41: XM_002708554.1 | C41: -23.6 | D41: 0.769416 | E41: NA | F41: NA
A42: bantam-3p_6 | B42: XM_002708560.1 | C42: -23.5 | D42: 0.795469 | E42: NA | F42: NA
A43: bantam-3p_6 | B43: XM_002708563.1 | C43: -24.1 | D43: 0.663309 | E43: NA | F43: NA
A44: bantam-3p_6 | B44: XM_002708610.3 | C44: -28.2 | D44: 0.356975 | E44: NA | F44: NA
A45: bantam-3p_6 | B45: XM_002708777.1 | C45: -24.9 | D45: 0.517312 | E45: NA | F45: NA
A46: bantam-3p_6 | B46: XM_002708914.2 | C46: -24.3 | D46: 0.626436 | E46: NA | F46: NA
A47: bantam-3p_6 | B47: XM_002709034.3 | C47: -28.8 | D47: 0.476188 | E47: NA | F47: NA
A48: bantam-3p_6 | B48: XM_002709065.3 | C48: -28.9 | D48: 0.253969 | E48: NA | F48: NA
A49: bantam-3p_6 | B49: XM_002709101.3 | C49: -29.4 | D49: 0.079178 | E49: NA | F49: NA
A50: bantam-3p_6 | B50: XM_002709118.1 | C50: -29.2 | D50: 0.085577 | E50: NA | F50: NA
A51: bantam-3p_6 | B51: XM_002709172.1 | C51: -24 | D51: 0.685018 | E51: NA | F51: NA
A52: bantam-3p_6 | B52: XM_002709184.2 | C52: -27.4 | D52: 0.319003 | E52: NA | F52: NA
A53: bantam-3p_6 | B53: XM_002709278.3 | C53: -25.6 | D53: 0.642931 | E53: NA | F53: NA
A54: bantam-3p_6 | B54: XM_002709470.2 | C54: -27.8 | D54: 0.586092 | E54: -23.26 | F54: 166
A55: bantam-3p_6 | B55: XM_002709497.3 | C55: -32.5 | D55: 0.043798 | E55: NA | F55: NA
A56: bantam-3p_6 | B56: XM_002709530.3 | C56: -25.2 | D56: 0.652286 | E56: NA | F56: NA
A57: bantam-3p_6 | B57: XM_002709569.3 | C57: -25.9 | D57: 0.56041 | E57: NA | F57: NA
A58: bantam-3p_6 | B58: XM_002709712.3 | C58: -25 | D58: 0.750037 | E58: NA | F58: NA
A59: bantam-3p_6 | B59: XM_002709733.3 | C59: -27.8 | D59: 0.667625 | E59: NA | F59: NA
A60: bantam-3p_6 | B60: XM_002709755.3 | C60: -28.3 | D60: 0.409746 | E60: NA | F60: NA
A61: bantam-3p_6 | B61: XM_002709766.3 | C61: NA | D61: NA | E61: -21.14 | F61: 150
A62: bantam-3p_6 | B62: XM_002709850.3 | C62: NA | D62: NA | E62: -22.31 | F62: 157
A63: bantam-3p_6 | B63: XM_002709879.3 | C63: NA | D63: NA | E63: -22.29 | F63: 157
A64: bantam-3p_6 | B64: XM_002709901.3 | C64: -28.6 | D64: 0.413658 | E64: -24.96 | F64: 157
A65: bantam-3p_6 | B65: XM_002710001.3 | C65: NA | D65: NA | E65: -20.67 | F65: 155
A66: bantam-3p_6 | B66: XM_002710307.3 | C66: -28.3 | D66: 0.463718 | E66: NA | F66: NA
A67: bantam-3p_6 | B67: XM_002710369.3 | C67: -26.3 | D67: 0.720167 | E67: NA | F67: NA
A68: bantam-3p_6 | B68: XM_002710432.3 | C68: -25.6 | D68: 0.706992 | E68: -22.25 | F68: 162
A69: bantam-3p_6 | B69: XM_002710465.3 | C69: -29.3 | D69: 0.167804 | E69: NA | F69: NA
A70: bantam-3p_6 | B70: XM_002710537.3 | C70: -27.5 | D70: 0.7602 | E70: NA | F70: NA
A71: bantam-3p_6 | B71: XM_002710538.3 | C71: -27.5 | D71: 0.759391 | E71: NA | F71: NA
A72: bantam-3p_6 | B72: XM_002710554.3 | C72: -32.5 | D72: 0.215039 | E72: -22.33 | F72: 147
A73: bantam-3p_6 | B73: XM_002710622.2 | C73: -27.2 | D73: 0.785748 | E73: -24.81 | F73: 164
A74: bantam-3p_6 | B74: XM_002710854.1 | C74: -21.9 | D74: 0.556361 | E74: NA | F74: NA
A75: bantam-3p_6 | B75: XM_002710889.3 | C75: -26.6 | D75: 0.429269 | E75: -22.65 | F75: 158
A76: bantam-3p_6 | B76: XM_002710965.3 | C76: -30.5 | D76: 0.059721 | E76: -30.29 | F76: 168
A77: bantam-3p_6 | B77: XM_002711003.3 | C77: -27.3 | D77: 0.497478 | E77: NA | F77: NA
A78: bantam-3p_6 | B78: XM_002711046.1 | C78: -27.1 | D78: 0.226556 | E78: NA | F78: NA
A79: bantam-3p_6 | B79: XM_002711064.3 | C79: NA | D79: NA | E79: -21.17 | F79: 155
A80: bantam-3p_6 | B80: XM_002711128.3 | C80: -28 | D80: 0.781741 | E80: NA | F80: NA
A81: bantam-3p_6 | B81: XM_002711197.2 | C81: -26 | D81: 0.653614 | E81: -22.27 | F81: 152
A82: bantam-3p_6 | B82: XM_002711209.3 | C82: NA | D82: NA | E82: -21.82 | F82: 157
A83: bantam-3p_6 | B83: XM_002711316.3 | C83: -27.4 | D83: 0.323427 | E83: NA | F83: NA
A84: bantam-3p_6 | B84: XM_002711371.3 | C84: NA | D84: NA | E84: -21.65 | F84: 147
A85: bantam-3p_6 | B85: XM_002711443.3 | C85: NA | D85: NA | E85: -20.53 | F85: 147
A86: bantam-3p_6 | B86: XM_002711542.3 | C86: -26.6 | D86: 0.557785 | E86: NA | F86: NA
A87: bantam-3p_6 | B87: XM_002711685.3 | C87: -26.2 | D87: 0.442356 | E87: NA | F87: NA
A88: bantam-3p_6 | B88: XM_002711809.3 | C88: -25.8 | D88: 0.712349 | E88: NA | F88: NA
A89: bantam-3p_6 | B89: XM_002712037.3 | C89: -26.5 | D89: 0.690865 | E89: NA | F89: NA
A90: bantam-3p_6 | B90: XM_002712064.3 | C90: NA | D90: NA | E90: -23.18 | F90: 166
A91: bantam-3p_6 | B91: XM_002712077.3 | C91: NA | D91: NA | E91: -20.8 | F91: 145
A92: bantam-3p_6 | B92: XM_002712156.3 | C92: -25.9 | D92: 0.794159 | E92: NA | F92: NA
A93: bantam-3p_6 | B93: XM_002712177.4 | C93: -28.1 | D93: 0.593864 | E93: NA | F93: NA
A94: bantam-3p_6 | B94: XM_002712375.3 | C94: NA | D94: NA | E94: -23.14 | F94: 167
A95: bantam-3p_6 | B95: XM_002712524.3 | C95: -26.4 | D95: 0.592965 | E95: NA | F95: NA
A96: bantam-3p_6 | B96: XM_002712554.3 | C96: -26 | D96: 0.560993 | E96: NA | F96: NA
A97: bantam-3p_6 | B97: XM_002712648.3 | C97: -25.6 | D97: 0.727972 | E97: NA | F97: NA
A98: bantam-3p_6 | B98: XM_002712710.3 | C98: NA | D98: NA | E98: -21.05 | F98: 151
A99: bantam-3p_6 | B99: XM_002712711.3 | C99: NA | D99: NA | E99: -21.05 | F99: 151
A100: bantam-3p_6 | B100: XM_002712712.3 | C100: NA | D100: NA | E100: -21.05 | F100: 151
A101: bantam-3p_6 | B101: XM_002712713.3 | C101: NA | D101: NA | E101: -21.05 | F101: 151
A102: bantam-3p_6 | B102: XM_002712714.3 | C102: NA | D102: NA | E102: -21.05 | F102: 151
A103: bantam-3p_6 | B103: XM_002712745.3 | C103: -24.2 | D103: 0.795417 | E103: NA | F103: NA
A104: bantam-3p_6 | B104: XM_002712781.3 | C104: NA | D104: NA | E104: -21.56 | F104: 149
A105: bantam-3p_6 | B105: XM_002712783.3 | C105: -28.4 | D105: 0.797552 | E105: NA | F105: NA
A106: bantam-3p_6 | B106: XM_002712812.3 | C106: NA | D106: NA | E106: -20.75 | F106: 153
A107: bantam-3p_6 | B107: XM_002712851.3 | C107: -25.3 | D107: 0.797123 | E107: NA | F107: NA
A108: bantam-3p_6 | B108: XM_002712866.3 | C108: -26.5 | D108: 0.69687 | E108: NA | F108: NA
A109: bantam-3p_6 | B109: XM_002713030.3 | C109: -27.4 | D109: 0.384525 | E109: NA | F109: NA
A110: bantam-3p_6 | B110: XM_002713290.3 | C110: -25.4 | D110: 0.617954 | E110: NA | F110: NA
A111: bantam-3p_6 | B111: XM_002713318.3 | C111: -26.2 | D111: 0.719003 | E111: -30.45 | F111: 158
A112: bantam-3p_6 | B112: XM_002713348.3 | C112: -25.6 | D112: 0.441898 | E112: NA | F112: NA
A113: bantam-3p_6 | B113: XM_002713356.3 | C113: -26.4 | D113: 0.780089 | E113: -25.66 | F113: 166
A114: bantam-3p_6 | B114: XM_002713432.3 | C114: -24.7 | D114: 0.662753 | E114: NA | F114: NA
A115: bantam-3p_6 | B115: XM_002713494.3 | C115: -30.7 | D115: 0.237721 | E115: NA | F115: NA
A116: bantam-3p_6 | B116: XM_002713734.3 | C116: -27.2 | D116: 0.251136 | E116: NA | F116: NA
A117: bantam-3p_6 | B117: XM_002713771.3 | C117: NA | D117: NA | E117: -23.84 | F117: 151
A118: bantam-3p_6 | B118: XM_002713835.3 | C118: -26.8 | D118: 0.781954 | E118: NA | F118: NA
A119: bantam-3p_6 | B119: XM_002713880.1 | C119: -26.7 | D119: 0.270557 | E119: NA | F119: NA
A120: bantam-3p_6 | B120: XM_002713935.3 | C120: -25 | D120: 0.385205 | E120: NA | F120: NA
A121: bantam-3p_6 | B121: XM_002714039.3 | C121: -28.4 | D121: 0.720313 | E121: -26.12 | F121: 164
A122: bantam-3p_6 | B122: XM_002714097.3 | C122: NA | D122: NA | E122: -20.55 | F122: 158
A123: bantam-3p_6 | B123: XM_002714266.2 | C123: NA | D123: NA | E123: -20.26 | F123: 156
A124: bantam-3p_6 | B124: XM_002714363.1 | C124: -24 | D124: 0.68367 | E124: NA | F124: NA
A125: bantam-3p_6 | B125: XM_002714368.1 | C125: -24 | D125: 0.711994 | E125: NA | F125: NA
A126: bantam-3p_6 | B126: XM_002714432.3 | C126: NA | D126: NA | E126: -22.11 | F126: 153
A127: bantam-3p_6 | B127: XM_002714555.3 | C127: -25.4 | D127: 0.673227 | E127: NA | F127: NA
A128: bantam-3p_6 | B128: XM_002714610.3 | C128: NA | D128: NA | E128: -21.4 | F128: 159
A129: bantam-3p_6 | B129: XM_002714625.3 | C129: NA | D129: NA | E129: -21.37 | F129: 152
A130: bantam-3p_6 | B130: XM_002714827.3 | C130: -26.1 | D130: 0.239105 | E130: NA | F130: NA
A131: bantam-3p_6 | B131: XM_002714833.3 | C131: -25.6 | D131: 0.696163 | E131: NA | F131: NA
A132: bantam-3p_6 | B132: XM_002715209.3 | C132: -25.9 | D132: 0.24954 | E132: NA | F132: NA
A133: bantam-3p_6 | B133: XM_002715223.3 | C133: -24.4 | D133: 0.799379 | E133: NA | F133: NA
A134: bantam-3p_6 | B134: XM_002715287.1 | C134: -25.4 | D134: 0.458504 | E134: NA | F134: NA
A135: bantam-3p_6 | B135: XM_002715594.3 | C135: NA | D135: NA | E135: -21.47 | F135: 164
A136: bantam-3p_6 | B136: XM_002715767.3 | C136: -27.5 | D136: 0.621104 | E136: NA | F136: NA
A137: bantam-3p_6 | B137: XM_002715777.3 | C137: -27.2 | D137: 0.498852 | E137: -24.77 | F137: 164
A138: bantam-3p_6 | B138: XM_002715789.2 | C138: -27 | D138: 0.423048 | E138: NA | F138: NA
A139: bantam-3p_6 | B139: XM_002715845.3 | C139: -26.2 | D139: 0.416947 | E139: NA | F139: NA
A140: bantam-3p_6 | B140: XM_002715957.3 | C140: NA | D140: NA | E140: -20.37 | F140: 152
A141: bantam-3p_6 | B141: XM_002715967.3 | C141: -26.9 | D141: 0.384789 | E141: NA | F141: NA
A142: bantam-3p_6 | B142: XM_002715970.3 | C142: -24.9 | D142: 0.722867 | E142: NA | F142: NA
A143: bantam-3p_6 | B143: XM_002716006.3 | C143: -22.8 | D143: 0.639532 | E143: NA | F143: NA
A144: bantam-3p_6 | B144: XM_002716066.3 | C144: -24.4 | D144: 0.754599 | E144: -24.22 | F144: 150
A145: bantam-3p_6 | B145: XM_002716072.3 | C145: -26.6 | D145: 0.68466 | E145: NA | F145: NA
A146: bantam-3p_6 | B146: XM_002716143.3 | C146: NA | D146: NA | E146: -21.51 | F146: 154
A147: bantam-3p_6 | B147: XM_002716152.4 | C147: -26.5 | D147: 0.60373 | E147: -21.39 | F147: 141
A148: bantam-3p_6 | B148: XM_002716263.3 | C148: -29.8 | D148: 0.178695 | E148: NA | F148: NA
A149: bantam-3p_6 | B149: XM_002716328.3 | C149: -27.3 | D149: 0.458553 | E149: NA | F149: NA
A150: bantam-3p_6 | B150: XM_002716384.3 | C150: -26.8 | D150: 0.344136 | E150: NA | F150: NA
A151: bantam-3p_6 | B151: XM_002716436.3 | C151: NA | D151: NA | E151: -20.48 | F151: 150
A152: bantam-3p_6 | B152: XM_002716474.3 | C152: -25.8 | D152: 0.401047 | E152: NA | F152: NA
A153: bantam-3p_6 | B153: XM_002716554.3 | C153: -29.5 | D153: 0.324172 | E153: NA | F153: NA
A154: bantam-3p_6 | B154: XM_002716681.3 | C154: -26.5 | D154: 0.264076 | E154: NA | F154: NA
A155: bantam-3p_6 | B155: XM_002716742.3 | C155: -26.3 | D155: 0.703878 | E155: NA | F155: NA
A156: bantam-3p_6 | B156: XM_002716832.3 | C156: NA | D156: NA | E156: -21.18 | F156: 149
A157: bantam-3p_6 | B157: XM_002716861.3 | C157: NA | D157: NA | E157: -22.89 | F157: 154
A158: bantam-3p_6 | B158: XM_002716875.3 | C158: -25.3 | D158: 0.709216 | E158: NA | F158: NA
A159: bantam-3p_6 | B159: XM_002717038.3 | C159: NA | D159: NA | E159: -26.27 | F159: 155
A160: bantam-3p_6 | B160: XM_002717119.3 | C160: -28.4 | D160: 0.37926 | E160: -27.97 | F160: 164
A161: bantam-3p_6 | B161: XM_002717167.3 | C161: -29.4 | D161: 0.677885 | E161: NA | F161: NA
A162: bantam-3p_6 | B162: XM_002717204.2 | C162: -27.3 | D162: 0.242005 | E162: NA | F162: NA
A163: bantam-3p_6 | B163: XM_002717280.3 | C163: -27.2 | D163: 0.742546 | E163: -21.47 | F163: 158
A164: bantam-3p_6 | B164: XM_002717284.3 | C164: NA | D164: NA | E164: -21.79 | F164: 149
A165: bantam-3p_6 | B165: XM_002717306.3 | C165: NA | D165: NA | E165: -22.4 | F165: 146
A166: bantam-3p_6 | B166: XM_002717307.3 | C166: NA | D166: NA | E166: -22.4 | F166: 146
A167: bantam-3p_6 | B167: XM_002717308.3 | C167: NA | D167: NA | E167: -22.4 | F167: 146
A168: bantam-3p_6 | B168: XM_002717364.3 | C168: NA | D168: NA | E168: -24.15 | F168: 149
A169: bantam-3p_6 | B169: XM_002717437.3 | C169: -24.8 | D169: 0.543173 | E169: NA | F169: NA
A170: bantam-3p_6 | B170: XM_002717464.3 | C170: -26.3 | D170: 0.535948 | E170: NA | F170: NA
A171: bantam-3p_6 | B171: XM_002717522.3 | C171: -30.6 | D171: 0.157707 | E171: NA | F171: NA
A172: bantam-3p_6 | B172: XM_002717531.3 | C172: NA | D172: NA | E172: -24.35 | F172: 157
A173: bantam-3p_6 | B173: XM_002717549.3 | C173: NA | D173: NA | E173: -24.04 | F173: 154
A174: bantam-3p_6 | B174: XM_002717590.3 | C174: -29.1 | D174: 0.59037 | E174: NA | F174: NA
A175: bantam-3p_6 | B175: XM_002717617.3 | C175: -30 | D175: 0.412509 | E175: NA | F175: NA
A176: bantam-3p_6 | B176: XM_002717618.3 | C176: -30 | D176: 0.410017 | E176: NA | F176: NA
A177: bantam-3p_6 | B177: XM_002717619.3 | C177: -30 | D177: 0.394204 | E177: NA | F177: NA
A178: bantam-3p_6 | B178: XM_002717722.3 | C178: -27.8 | D178: 0.728748 | E178: NA | F178: NA
A179: bantam-3p_6 | B179: XM_002717773.3 | C179: NA | D179: NA | E179: -27.38 | F179: 154
A180: bantam-3p_6 | B180: XM_002717847.1 | C180: -24 | D180: 0.675458 | E180: NA | F180: NA
A181: bantam-3p_6 | B181: XM_002717922.3 | C181: NA | D181: NA | E181: -21.39 | F181: 148
A182: bantam-3p_6 | B182: XM_002717971.3 | C182: -28 | D182: 0.787044 | E182: NA | F182: NA
A183: bantam-3p_6 | B183: XM_002717985.3 | C183: -27.8 | D183: 0.732966 | E183: NA | F183: NA
A184: bantam-3p_6 | B184: XM_002718018.1 | C184: -23.3 | D184: 0.799613 | E184: NA | F184: NA
A185: bantam-3p_6 | B185: XM_002718028.1 | C185: -26.6 | D185: 0.279893 | E185: NA | F185: NA
A186: bantam-3p_6 | B186: XM_002718056.3 | C186: NA | D186: NA | E186: -21.32 | F186: 147
A187: bantam-3p_6 | B187: XM_002718077.3 | C187: -26.3 | D187: 0.378538 | E187: -24.3 | F187: 162
A188: bantam-3p_6 | B188: XM_002718081.3 | C188: -25.2 | D188: 0.738776 | E188: NA | F188: NA
A189: bantam-3p_6 | B189: XM_002718236.3 | C189: NA | D189: NA | E189: -21.06 | F189: 150
A190: bantam-3p_6 | B190: XM_002718237.3 | C190: NA | D190: NA | E190: -21.06 | F190: 150
A191: bantam-3p_6 | B191: XM_002718246.3 | C191: NA | D191: NA | E191: -21.46 | F191: 159
A192: bantam-3p_6 | B192: XM_002718269.3 | C192: -25.5 | D192: 0.342736 | E192: NA | F192: NA
A193: bantam-3p_6 | B193: XM_002718450.3 | C193: -26.1 | D193: 0.799826 | E193: NA | F193: NA
A194: bantam-3p_6 | B194: XM_002718544.3 | C194: NA | D194: NA | E194: -21.76 | F194: 151
A195: bantam-3p_6 | B195: XM_002718581.3 | C195: -27.9 | D195: 0.680359 | E195: -23.3 | F195: 154
A196: bantam-3p_6 | B196: XM_002718646.3 | C196: -29.5 | D196: 0.322137 | E196: NA | F196: NA
A197: bantam-3p_6 | B197: XM_002718676.3 | C197: -25.3 | D197: 0.772983 | E197: NA | F197: NA
A198: bantam-3p_6 | B198: XM_002718777.3 | C198: -28.5 | D198: 0.057707 | E198: -20.96 | F198: 147
A199: bantam-3p_6 | B199: XM_002718797.3 | C199: -26.5 | D199: 0.513206 | E199: NA | F199: NA
A200: bantam-3p_6 | B200: XM_002718844.3 | C200: -28.3 | D200: 0.182209 | E200: NA | F200: NA
... 4300 more rows
